{"text_format":"3","workbook":"xlsx","n_sheets":12,"sheets":["Матрица","Таблица соответствия КЗ ТКХ","Характеристика работ","Должен знать","Примеры работ","ПС16.086 B 01.3","ПС16.086 B 02.3 ","ПС16.086 B 03.3","ПС16.086 B 04.3","ПС 16.086 B 05.3","ПС16.089 B 01.3","ПС16.089 B 02.3 "],"read":"whole","date_system":"1900"}

{"sheet":"Матрица","index":0,"n_rows":23,"n_cols":9,"rows_kept":23,"merged":[[0,0,0,1],[0,2,0,3],[0,4,0,5],[2,0,20,0],[2,1,20,1],[2,3,3,3],[2,5,3,5],[2,6,3,6],[2,7,3,7],[2,8,3,8],[4,3,6,3],[4,5,6,5],[4,6,6,6],[4,7,6,7],[4,8,6,8],[4,9,6,9],[7,3,8,3],[7,5,8,5],[7,6,8,6],[7,7,8,7],[7,8,8,8],[7,9,8,9],[9,3,11,3],[9,5,11,5],[9,6,11,6],[9,7,11,7],[9,8,11,8],[9,9,11,9],[12,3,13,3],[12,5,13,5],[12,6,13,6],[12,7,13,7],[12,8,13,8],[12,9,13,9],[14,3,15,3],[14,5,15,5],[14,6,15,6],[14,7,15,7],[14,8,15,8],[14,9,15,9],[16,6,20,6],[16,7,20,7],[16,8,20,8],[16,9,20,9],[22,1,22,8]]}
["Обобщенная трудовая функция",null,"Трудовая функция/Основной вид деятельности",null,"ЗУНы \n(из ПС + ФГОС + ЕТКС)",null,"Модуль","Инвариант/вариатив","КО"]
["ПС 16.086 ","ПС 16.089 ","ПС 16.086 ","ПС 16.089 ","ПС 16.086 ","ПС 16.089 ","Модуль"]
["Выполнение периодического технического обслуживания домовых санитарно-технических систем и оборудования","Выполнение работ средней сложности при монтаже и ремонте систем отопления, водоснабжения, канализации и водостоков объектов капитального строительства непроизводственного и производственного назначения","Обнаружение неисправности домовых санитарно-технических систем и оборудования","Монтаж и ремонт внутренних систем горячего и холодного водоснабжения, канализации и водостоков","Профстандарт 16.086 B/01.3","Профстандарт 16.089 B/02.3","Модуль А. Установка застенных модулей, монтаж системы водоотведения","Инвариант",{"v":7.8,"d":"7.80"}]
[null,null,"Выполнение периодического технического обслуживания внутренней системы канализации и санитарно-технических приборов",{"$f":"D3","v":"Монтаж и ремонт внутренних систем горячего и холодного водоснабжения, канализации и водостоков"},"Профстандарт 16.086 B/02.3",{"$f":"F3","v":"Профстандарт 16.089 B/02.3"},{"$f":"G3","v":"Модуль А. Установка застенных модулей, монтаж системы водоотведения"}]
[null,null,"Выполнение периодического технического обслуживания системы водоснабжения, в том числе поливочной системы и системы противопожарного водопровода","Монтаж и ремонт внутренних систем горячего и холодного водоснабжения, канализации и водостоков","Профстандарт 16.086 B/03.3","Профстандарт 16.089 B/02.3","Модуль Б. Монтаж систем холодного и горячего водоснабжения с установкой встраиваемых элементов","Инвариант",27.35]
[null,null,"Выполнение периодического технического обслуживания систем отопления и горячего водоснабжения",{"$f":"D5","v":"Монтаж и ремонт внутренних систем горячего и холодного водоснабжения, канализации и водостоков"},"Профстандарт 16.086 B/04.3",null,{"$f":"G5","v":"Модуль Б. Монтаж систем холодного и горячего водоснабжения с установкой встраиваемых элементов"}]
[null,null,"Проведение простых ремонтных работ при техническом обслуживании и текущем ремонте домовых санитарно-технических систем и оборудования",{"$f":"D5","v":"Монтаж и ремонт внутренних систем горячего и холодного водоснабжения, канализации и водостоков"},"Профстандарт 16.086 B/05.3",null,{"$f":"G5","v":"Модуль Б. Монтаж систем холодного и горячего водоснабжения с установкой встраиваемых элементов"}]
[null,null,"Выполнение периодического технического обслуживания внутренней системы канализации и санитарно-технических приборов","Монтаж и ремонт внутренних систем горячего и холодного водоснабжения, канализации и водостоков","Профстандарт 16.086 B/02.3","Профстандарт 16.089 B/02.3","Модуль В – Установка санитарно-техических приборов","Инвариант",{"v":8,"d":"8.00"}]
[null,null,"Проведение простых ремонтных работ при техническом обслуживании и текущем ремонте домовых санитарно-технических систем и оборудования",{"$f":"D8","v":"Монтаж и ремонт внутренних систем горячего и холодного водоснабжения, канализации и водостоков"},"Профстандарт 16.086 B/05.3",{"$f":"F8","v":"Профстандарт 16.089 B/02.3"}]
[null,null,"Обнаружение неисправности домовых санитарно-технических систем и оборудования","Монтаж и ремонт систем отопления","Профстандарт 16.086 B/01.3","Профстандарт 16.089 B/01.3","Модуль Г – Монтаж системы автономного отопления","Инвариант",27.45]
[null,null,"Выполнение периодического технического обслуживания систем отопления и горячего водоснабжения",{"$f":"D10","v":"Монтаж и ремонт систем отопления"},"Профстандарт 16.086 B/04.3",{"$f":"F10","v":"Профстандарт 16.089 B/01.3"},{"$f":"G10","v":"Модуль Г – Монтаж системы автономного отопления"}]
[null,null,"Проведение простых ремонтных работ при техническом обслуживании и текущем ремонте домовых санитарно-технических систем и оборудования",{"$f":"D10","v":"Монтаж и ремонт систем отопления"},"Профстандарт 16.086 B/05.3",{"$f":"F10","v":"Профстандарт 16.089 B/01.3"},{"$f":"G10","v":"Модуль Г – Монтаж системы автономного отопления"}]
[null,null,"Выполнение периодического технического обслуживания системы водоснабжения, в том числе поливочной системы и системы противопожарного водопровода","Монтаж и ремонт внутренних систем горячего и холодного водоснабжения, канализации и водостоков","Профстандарт 16.086 B/03.3","Профстандарт 16.089 B/02.3","Модуль Д - Монтаж системы центрального отопления","Вариатив",{"v":12.6,"d":"12.60"}]
[null,null,"Проведение простых ремонтных работ при техническом обслуживании и текущем ремонте домовых санитарно-технических систем и оборудования",{"$f":"D13","v":"Монтаж и ремонт внутренних систем горячего и холодного водоснабжения, канализации и водостоков"},"Профстандарт 16.086 B/05.3",{"$f":"F13","v":"Профстандарт 16.089 B/02.3"}]
[null,null,"Выполнение периодического технического обслуживания системы водоснабжения, в том числе поливочной системы и системы противопожарного водопровода","Монтаж и ремонт внутренних систем горячего и холодного водоснабжения, канализации и водостоков","Профстандарт 16.086 B/03.3","Профстандарт 16.089 B/02.3","Модуль Е - Монтаж стояка системы противопожарного и производственной канализации","Вариатив",{"v":11.8,"d":"11.80"}]
[null,null,"Проведение простых ремонтных работ при техническом обслуживании и текущем ремонте домовых санитарно-технических систем и оборудования",{"$f":"D15","v":"Монтаж и ремонт внутренних систем горячего и холодного водоснабжения, канализации и водостоков"},"Профстандарт 16.086 B/05.3",{"$f":"F15","v":"Профстандарт 16.089 B/02.3"},{"$f":"G15","v":"Модуль Е - Монтаж стояка системы противопожарного и производственной канализации"}]
[null,null,"Обнаружение неисправности домовых санитарно-технических систем и оборудования","Монтаж и ремонт систем отопления","Профстандарт 16.086 B/01.3","Профстандарт 16.089 B/01.3","Модуль Ж – Информирование руководства о выполненной работе","Вариатив",{"v":5,"d":"5.00"}]
[null,null,"Выполнение периодического технического обслуживания внутренней системы канализации и санитарно-технических приборов","Монтаж и ремонт внутренних систем горячего и холодного водоснабжения, канализации и водостоков","Профстандарт 16.086 B/02.3","Профстандарт 16.089 B/02.3",{"$f":"G17","v":"Модуль Ж – Информирование руководства о выполненной работе"}]
[null,null,"Выполнение периодического технического обслуживания системы водоснабжения, в том числе поливочной системы и системы противопожарного водопровода",null,"Профстандарт 16.086 B/03.3",null,{"$f":"G17","v":"Модуль Ж – Информирование руководства о выполненной работе"}]
[null,null,"Выполнение периодического технического обслуживания систем отопления и горячего водоснабжения",null,"Профстандарт 16.086 B/04.3",null,{"$f":"G17","v":"Модуль Ж – Информирование руководства о выполненной работе"}]
[null,null,"Проведение простых ремонтных работ при техническом обслуживании и текущем ремонте домовых санитарно-технических систем и оборудования",null,"Профстандарт 16.086 B/05.3",null,{"$f":"G17","v":"Модуль Ж – Информирование руководства о выполненной работе"}]
[{"$nulls":8},{"$f":"SUM(I3:I21)","v":{"v":99.99999999999999,"d":"100.00"}}]
[null,"Для выполнения конкурсного задания при проведения РЧ неизменными являются Задачи 1,2,3,4,5,6 Модулей А, Б, В, Г. Технологии модулей из вариативной части Задачи 7,8,9,10 Модулей Д, Е Ж, выбираются регионом самостоятельно в зависимости от потребностей работодателей региона в соответствующих специалистах. В случае если ни одна из технологий вариативной части не подходит под запрос работодателя конкретного региона, то вариативный (е) модуль (и) формируются регионом самостоятельно под запрос работодателя. При этом, время на выполнение модуля (ей) и количество баллов в критериях оценки по аспектам не меняются."]

{"sheet":"Таблица соответствия КЗ ТКХ","index":1,"n_rows":25,"n_cols":7,"rows_kept":25,"merged":[[0,0,0,6],[2,5,2,6],[3,0,5,0],[3,3,5,3],[3,4,5,4],[3,5,5,5],[3,6,5,6],[8,0,9,0],[8,1,9,1],[8,2,9,2],[8,3,9,3],[8,4,8,5],[10,0,17,0],[10,1,17,1],[19,0,19,6]]}
["Соответствие требований тарифно-квалификационной характеристики профессии  \"Монтажник санитарно-технических систем и оборудования\" конкурсному заданию компетенции "]
[]
["Компетенция","Код ФГОС СПО","Наименование ФГОС СПО","Код","Наименование профессий рабочих, должностей служащих","Квалификация (разряд, класс, категория)"]
["Сантехника и отопление","08.01.29","Мастер по ремонту и\nобслуживанию инженерных\nсистем жилищно-коммунального\nхозяйства\n",14621,"Монтажник санитарно-технических систем и оборудования","2 уровень квалификации, \n3 разряд.","3 уровень квалификации, \n4 разряд ( ¹При условии опыта практической работы:\nНе менее двух лет в области монтажа санитарно-технических систем и оборудования)."]
[null,"08.02.07.","Монтаж и эксплуатация внутренних сантехнических устройств кондиционирования воздуха и вентиляции"]
[null,"08.02.13.","Монтаж и эксплуатация внутренних сантехнических устройств кондиционирования воздуха и вентиляции"]
[]
[]
["Наименование профессий рабочих, должностей служащих","Квалификация (разряд, класс, категория)","Наименование модуля конкурсного задания","Максимальное количество баллов по модулю","Количество баллов, необходимое  для получения данной квалификации (разряда, класса, категории)"]
[{"$nulls":4},"3 разряд","4 разряд ¹"]
["Монтажник санитарно-технических систем и оборудования","2 уровень квалификации, 3 разряд.\n3 уровень квалификации, 4 разряд (При условии опыта практической работы:\nНе менее двух лет в области монтажа санитарно-технических систем и оборудования).","Модуль А: Установка застенных модулей, монтаж системы водоотведения.",{"v":7.8,"d":"7.80"},{"v":4.6,"d":"4.60"},{"v":6.3,"d":"6.30"}]
[null,null,"Модуль Б: Монтаж систем холодного и горячего водоснабжения с установкой встраиваемых элементов.",27.35,16.45,21.85]
[null,null,"Модуль В: Установка санитарно-технических приборов.",{"v":8,"d":"8.00"},{"v":4.7,"d":"4.70"},{"v":6.4,"d":"6.40"}]
[null,null,"Модуль Г: Монтаж системы автономного отопления",27.45,16.65,21.95]
[null,null,"Модуль Д. Монтаж системы центрального отопления (скоростной тест)",{"v":12.6,"d":"12.60"},{"v":7.6,"d":"7.60"},{"v":10.1,"d":"10.10"}]
[null,null,"Модуль Е: Монтаж противопожарного водопровода и производственной канализации",{"v":11.8,"d":"11.80"},{"v":7,"d":"7.00"},{"v":9.4,"d":"9.40"}]
[null,null,"Модуль Ж: Информирование руководства о выполненной работе",{"v":5,"d":"5.00"},{"v":3,"d":"3.00"},{"v":4,"d":"4.00"}]
[null,null,"Итого:",{"$f":"SUM(D11:D17)","v":{"v":99.99999999999999,"d":"100.00"}},{"$f":"SUM(E11:E17)","v":{"v":59.99999999999999,"d":"60.00"}},{"$f":"SUM(F11:F17)","v":{"v":80,"d":"80.00"}}]
[]
["Участнику присваивается квалификация по профессии рабочего (должности служащего) Монтажник санитарно-технических систем и оборудования с присвоением___ разряда (класса,категории) при наборе участником не менее _____% от количества баллов, необходимого для получения квалификации"]
[]
[]
["СОГЛАСОВАНО"]
[]
["Менеджер компетенции ",null,"________________________________","ФИО"]

{"sheet":"Характеристика работ","index":2,"n_rows":21,"n_cols":3,"rows_kept":21,"merged":[[0,0,0,2]]}
["1. Соответствие требований Тарификационно-квалификационных характеристик в части Характеристики работ Модулям конкурсного задания компетенции"]
[]
["Характеристика работ\n2 уровень квалификации, \n3 разряд.","Модуль Конкурсного задания","Соответствование содержания задания по модулю требованиям ТКХ"]
["Выполнение простых работ при монтаже и ремонте систем центрального отопления, водоснабжения, канализации, газоснабжения и водостоков.","Модуль А, Б, Г, Д, Е,Ж","Установка застенных модулей, монтаж системы водоотведения;\nМонтаж систем холодного и горячего водоснабжения с установкой встраиваемых элементов;\nМонтаж системы отопления и системы «тёплый пол»;\nМонтаж системы противопожарного водопровода из стальных ВГП труб;\nИнформирование руководства о выполненной работе."]
["Свертывание и сборка простых узлов.","Модуль А, Б, Г, Д, Е","Установка застенных модулей, монтаж системы водоотведения;\nМонтаж систем холодного и горячего водоснабжения с установкой встраиваемых элементов;\nМонтаж системы отопления и системы «тёплый пол»;\nМонтаж системы противопожарного водопровода из стальных ВГП труб."]
["Установка и заделка креплений под приборы и трубопроводы","Модуль А, Б, В, Г, Д, Е","Установка застенных модулей, монтаж системы водоотведения;\nМонтаж систем холодного и горячего водоснабжения с установкой встраиваемых элементов;\nУстановка санитарно-технических приборов;\nМонтаж системы отопления и системы «тёплый пол»;\nМонтаж системы противопожарного водопровода из стальных ВГП труб."]
["Сверление или пробивка отверстий в конструкциях.","Модуль А, Б, В, Г, Д, Е","Установка застенных модулей, монтаж системы водоотведения;\nМонтаж систем холодного и горячего водоснабжения с установкой встраиваемых элементов;\nУстановка санитарно-технических приборов;\nМонтаж системы отопления и системы «тёплый пол»;\nМонтаж системы противопожарного водопровода из стальных ВГП труб."]
["Нарезка резьбы на трубах вручную.","Модуль Д","Монтаж системы противопожарного водопровода из стальных ВГП труб."]
["Комплектование труб и фасонных частей стояков.","Модуль А, Б, В, Г, Д, Е","Установка застенных модулей, монтаж системы водоотведения;\nМонтаж систем холодного и горячего водоснабжения с установкой встраиваемых элементов;\nУстановка санитарно-технических приборов;\nМонтаж системы отопления и системы «тёплый пол»;\nМонтаж системы противопожарного водопровода из стальных ВГП труб."]
["Смена манжет у унитаза","Модуль В","Установка санитарно-технических приборов."]
[]
["Характеристика работ\n3 уровень квалификации, \n4 разряд \n( ¹При условии опыта практической работы:\nНе менее двух лет в области монтажа санитарно-технических систем и оборудования).","Модуль Конкурсного задания","Соответствование содержания задания по модулю требованиям ТКХ"]
["Выполнение работ при монтаже и ремонте систем центрального отопления, водоснабжения, канализации, газоснабжения и водостоков.","Модуль А, Б, Г, Д, Е,Ж","Установка застенных модулей, монтаж системы водоотведения;\nМонтаж систем холодного и горячего водоснабжения с установкой встраиваемых элементов;\nМонтаж системы отопления и системы «тёплый пол»;\nМонтаж системы противопожарного водопровода из стальных ВГП труб;\nИнформирование руководства о выполненной работе."]
["Монтаж трубопроводов и запорной арматуры диаметром до 200 мм.","Модуль А, Б, В, Г, Д, Е","Установка застенных модулей, монтаж системы водоотведения;\nМонтаж систем холодного и горячего водоснабжения с установкой встраиваемых элементов;\nУстановка санитарно-технических приборов;\nМонтаж системы отопления и системы «тёплый пол»;\nМонтаж системы противопожарного водопровода из стальных ВГП труб."]
["Установка грязевиков и баков всех видов.","Модуль Б","Монтаж систем холодного и горячего водоснабжения с установкой встраиваемых элементов;"]
["Установка и подсоединение к трубопроводам санитарных приборов с арматурой (раковины, умывальники, мойки, трапы, ванны, унитазы, смывные бачки и т.п.).","Модуль В","Установка санитарно-технических приборов."]
["Разметка мест установки приборов.","Модуль А, Б, В, Г, Д, Е","Установка застенных модулей, монтаж системы водоотведения;\nМонтаж систем холодного и горячего водоснабжения с установкой встраиваемых элементов;\nУстановка санитарно-технических приборов;\nМонтаж системы отопления и системы «тёплый пол»;\nМонтаж системы противопожарного водопровода из стальных ВГП труб."]
["Регулирование смывных бачков.","Модуль В, Е","Установка санитарно-технических приборов;\nИнформирование руководства о выполненной работе."]
["Установка водоразборных, туалетных кранов и смесителей.","Модуль В","Установка санитарно-технических приборов;"]
["Подбор и комплектование материалов, оборудования и изделий для устройства санитарно-технических систем по этажам, стоякам и секциям зданий и сооружений.","Модуль А, Б, В, Г, Д, Е","Установка застенных модулей, монтаж системы водоотведения;\nМонтаж систем холодного и горячего водоснабжения с установкой встраиваемых элементов;\nУстановка санитарно-технических приборов;\nМонтаж системы отопления и системы «тёплый пол»;\nМонтаж системы противопожарного водопровода из стальных ВГП труб."]
["Монтаж водопровода и канализации из полимерных труб на резьбовых, сварных, клеевых или раструбных соединениях.","Модуль А, Б","Установка застенных модулей, монтаж системы водоотведения;\nМонтаж систем холодного и горячего водоснабжения с установкой встраиваемых элементов;"]

{"sheet":"Должен знать","index":3,"n_rows":13,"n_cols":3,"rows_kept":13,"merged":[[0,0,0,2]]}
["2. Соответствие требований Тарифно-квалификационных характеристик в части необходимых Знаний Перечню профессиональных задач специалиста по компетенции (таблица №1 КЗ)"]
[]
["Должен знать по ТКХ\n2 уровень квалификации, \n3 разряд.","Раздел Перечня профессиональных задач специалиста","Соответствие содержания раздела Перечня требованиям ТКХ"]
["виды основных деталей санитарно-технических систем, соединений труб и креплений трубопроводов","2 - Работа с нормативной, сопроводительной документацией, чертежи, \n4 - Менеджмент (дизайн),\n5 - Технологии и ресурсы.","Виды технической и проектной документации систем водоснабжения, водоотведения, отопления и газоснабжения;\nПравила построения монтажных чертежей и замерных эскизов с натуры и по строительным чертежам;\nНазначение каждого вида оборудования, основных деталей и узлов систем водоснабжения, водоотведения, отопления и газоснабжения и их оборудования;\nПравила размещения элементов систем водоснабжения, водоотведения, отопления и газоснабжения с учетом требований эргономики;\nТехнологию работ по монтажу систем водоснабжения, водоотведения, отопления и газоснабжения и их оборудования"]
["назначение, устройство и особенности монтажа внутренних систем центрального отопления, водоснабжения, канализации, газоснабжения и водостоков","4 - Менеджмент (дизайн),\n5 - Технологии и ресурсы,\n8 - Создание и применение решений для обслуживания, ремонта и замены","Назначение каждого вида оборудования, основных деталей и узлов систем водоснабжения, водоотведения, отопления и газоснабжения и их оборудования;\nПравила размещения элементов систем водоснабжения, водоотведения, отопления и газоснабжения с учетом требований эргономики;\nУстройство и способы монтажа трубопроводных систем из стальных, медных и полимерных труб;\nПравила установки санитарных приборов;\nУстройство и способы монтажа трубопроводных систем из стальных, медных, латунных, полимерных, металлополимерных, нержавеющих и оцинкованных труб;\nСпособы разметки мест установки приборов и креплений;\n Устройство, принцип работы и общие технические характеристики домовых санитарно-технических систем и оборудования. "]
["способы сверления и пробивки отверстий","1 - Организация работ, охрана труда,\n2 - Работа с нормативной, сопроводительной документацией, чертежи.","Виды шаблонов для разметки отверстий при установке приборов и правила пользования ими;\nВиды технической и проектной документации систем водоснабжения, водоотведения, отопления и газоснабжения."]
["правила пользования механизированным инструментом","1 - Организация работ, охрана труда\n5 - Технологии и ресурсы.","Требования охраны труда, пожарной и экологической безопасности;\nНазначение и правила применения ручных и механизированных инструментов и приспособлений, необходимых при монтаже систем водоснабжения, водоотведения, отопления и газоснабжения и их оборудования."]
[]
["Должен знать по ТКХ\n3 уровень квалификации, \n4 разряд \n( ¹При условии опыта практической работы:\nНе менее двух лет в области монтажа санитарно-технических систем и оборудования).","Раздел Перечня профессиональных задач специалиста","Соответствие содержания раздела Перечня требованиям ТКХ"]
["системы разводов от стояков","2 - Работа с нормативной, сопроводительной документацией, чертежи, \n4 - Менеджмент (дизайн),\n5 - Технологии и ресурсы.","Виды технической и проектной документации систем водоснабжения, водоотведения, отопления и газоснабжения;\nПравила построения монтажных чертежей и замерных эскизов с натуры и по строительным чертежам;\nНазначение каждого вида оборудования, основных деталей и узлов систем водоснабжения, водоотведения, отопления и газоснабжения и их оборудования;\nПравила размещения элементов систем водоснабжения, водоотведения, отопления и газоснабжения с учетом требований эргономики;\nТехнологию работ по монтажу систем водоснабжения, водоотведения, отопления и газоснабжения и их оборудования"]
["устройство и способы монтажа трубопроводных систем из стальных и полимерных труб","4 - Менеджмент (дизайн),\n5 - Технологии и ресурсы,\n8 - Создание и применение решений для обслуживания, ремонта и замены","Назначение каждого вида оборудования, основных деталей и узлов систем водоснабжения, водоотведения, отопления и газоснабжения и их оборудования;\nПравила размещения элементов систем водоснабжения, водоотведения, отопления и газоснабжения с учетом требований эргономики;\nУстройство и способы монтажа трубопроводных систем из стальных, медных и полимерных труб;\nПравила установки санитарных приборов;\nУстройство и способы монтажа трубопроводных систем из стальных, медных, латунных, полимерных, металлополимерных, нержавеющих и оцинкованных труб;\nСпособы разметки мест установки приборов и креплений;\n Устройство, принцип работы и общие технические характеристики домовых санитарно-технических систем и оборудования. "]
["способы разметки мест установки креплений и приборов","1 - Организация работ, охрана труда,\n2 - Работа с нормативной, сопроводительной документацией, чертежи.","Виды шаблонов для разметки отверстий при установке приборов и правила пользования ими;\nВиды технической и проектной документации систем водоснабжения, водоотведения, отопления и газоснабжения."]
["правила установки санитарно-технических и нагревательных приборов","2 - Работа с нормативной, сопроводительной документацией, чертежи;\n5 - Технологии и ресурсы.","Виды технической и проектной документации систем водоснабжения, водоотведения, отопления и газоснабжения;\nПравила установки санитарных приборов;\nПравила установки отопительных приборов."]

{"sheet":"Примеры работ","index":4,"n_rows":3,"n_cols":2,"rows_kept":3,"merged":[[0,0,0,1]]}
["3. Соответствие Тарифно-квалификационных характеристик в части Примеров работ Конкурсному заданию (если определено в ТКХ)"]
[]
["Примеры работ в ТКХ","Примеры работ в КЗ"]

{"sheet":"ПС16.086 B 01.3","index":5,"n_rows":122,"n_cols":3,"rows_kept":122,"merged":[[0,0,0,2],[12,0,12,2],[13,0,13,2],[14,0,14,2],[15,0,15,2],[33,0,33,2],[34,0,34,2],[35,0,35,2],[36,0,36,2],[37,0,37,2],[38,0,38,2],[58,0,58,2],[59,0,59,2],[60,0,60,2],[61,0,61,2],[62,0,62,2],[63,0,63,2],[85,0,85,2],[86,0,103,0],[86,1,86,2],[87,1,87,2],[88,1,88,2],[89,1,89,2],[90,1,90,2],[91,1,91,2],[92,1,92,2],[93,1,93,2],[94,1,94,2],[95,1,95,2],[96,1,96,2],[97,1,97,2],[98,1,98,2],[99,1,99,2],[100,1,100,2],[101,1,101,2],[102,1,102,2],[103,1,103,2],[104,0,109,0],[104,1,104,2],[105,1,105,2],[106,1,106,2],[107,1,107,2],[108,1,108,2],[109,1,109,2],[111,0,111,2],[112,0,116,0],[112,1,112,2],[113,1,113,2],[114,1,114,2],[115,1,115,2],[116,1,116,2],[117,0,121,0],[117,1,117,2],[118,1,118,2],[119,1,119,2],[120,1,120,2],[121,1,121,2]]}
["Профстандарт 16.086 B/01.3"]
["Трудовые действия","Умения","Знания"]
["Получение задания на выполнение работ по обслуживанию, ремонту домовых санитарно-технических систем и оборудования и устранению аварий на домовых санитарно-технических системах и оборудовании","Выполнять работы с соблюдением требований охраны труда, пожарной и экологической безопасности","Устройство, принцип работы и общие технические характеристики домовых санитарно-технических систем и оборудования"]
["Осмотр территории, под которой проложен выпуск канализационного лежака от стены многоквартирного дома (далее - МКД) до первого колодца, на предмет обнаружения промоин, провалов, испарений","Определять рациональные и безопасные маршруты следования для осмотра наружных канализационных сетей (в границах эксплуатационной ответственности - до первого смотрового колодца)","Номенклатура материалов, изделий, инструмента и приспособлений, применяемых при ремонте домовых санитарно-технических систем и оборудования"]
["Осмотр внутридомовых водопроводно-канализационных сетей для выявления неисправностей","Подбирать необходимый инструмент и приспособления для производства работ","Методы оценки технического состояния домовых санитарно-технических систем и оборудования"]
["Замер параметров теплоносителя и воды (давления, температуры, расхода) в помещениях МКД","Выявлять неисправности в работе элементов внутренней канализации, канализационных вытяжек, внутреннего водостока, дренажных систем","Внешние проявления поверхностных дефектов на наружных канализационных и домовых водопроводно-канализационных сетях"]
["Проверка исправности и работоспособности оборудования на домовых индивидуальных тепловых пунктах и водоподкачках","Выявлять неисправности в работе оборудования на домовых индивидуальных тепловых пунктах и водоподкачках","Требования охраны труда при ремонте домовых санитарно-технических систем и оборудования"]
["Осмотр контрольно-измерительных приборов","Измерять параметры теплоносителя и воды (давления, температуры, расхода) в помещениях МКД, в том числе на индивидуальных тепловых пунктах и водоподкачках"]
["Проверка герметичности участков трубопроводов","Определять состояние и выявлять неисправности в работе насосов, запорной арматуры, контрольно-измерительных приборов, коллективных (общедомовых) приборов учета, расширительных баков и элементов, скрытых от постоянного наблюдения (разводящих трубопроводов и оборудования на чердаках, в подвалах и каналах)"]
["Проверка состояния элементов внутренней канализации, канализационных вытяжек, дренажных систем","Выявлять поверхностные дефекты на домовых санитарно-технических системах и оборудовании"]
["Информирование работника более высокого уровня квалификации при выявлении неисправностей, обнаружении дефектов или низкого качества материалов, а также работ, выполненных с отклонением от проекта или технических условий"]
[]
["ФГОС  08.01.29 Мастер по ремонту и обслуживанию инженерных систем жилищно-коммунального хозяйства"]
["3.4.1. Выполнение работ по ремонту, монтажу и эксплуатации систем водоснабжения, водоотведения и отопления систем жилищно-коммунального хозяйства:"]
["ПК 1.1. Выполнять ремонт и монтаж систем водоснабжения, водоотведения и отопления. "]
["ПК 1.2. Выполнять эксплуатацию системы водоснабжения, водоотведения и отопления."]
["Иметь практический опыт в","Уметь","Знать"]
["подготовки объекта к ремонту и монтажу систем водоснабжения, водоотведения и отопления в соответствии с проектом производства работ, стандартами рабочего места и охраны труда;\n\n\n\n\n","оценивать состояние рабочего места на соответствие требованиям охраны труда;\n\n\n\n\n\n\n\n\n\n","требования по охране труда при проведении работ по ремонту и монтажу систем водоснабжения, водоотведения и отопления объектов жилищно-коммунального хозяйства; \n\n\n\n\n\n\n\n\n"]
["выполнения подготовительных работ при монтаже и ремонте систем водоснабжения, водоотведения и отопления;","определять исправность средств индивидуальной защиты;\n","виды и основные правила построения чертежей, эскизов и схем систем водоснабжения, водоотведения и отопления объектов жилищно коммунального хозяйства; "]
["подготовки основных и вспомогательных материалов для ремонта и монтажа систем водоснабжения, водоотведения и отопления; ","читать и выполнять чертежи, эскизы и схемы систем водоснабжения, водоотведения и отопления объектов жилищно-коммунального хозяйства; ","проектной технической документации для выполнения монтажных работ системы водоснабжения, водоотведения, отопления;"]
["проведения работ по ремонту и монтажу оборудования систем \nводоснабжения, водоотведения и отопления зданий и сооружений жилищно-коммунального хозяйства;","подбирать материалы, инструменты и оборудование для монтажа и ремонта;","виды, назначения, устройства и принципов работы систем \nводоснабжения, водоотведения и отопления;"]
["\nпроведения работ по эксплуатации оборудования систем \nводоснабжения, водоотведения и отопления зданий и сооружений жилищно-коммунального хозяйства;","проводить техническое обслуживание оборудования систем \nводоснабжения, водоотведения и отопления объектов жилищно коммунального хозяйства; ","сущность, технологии и содержание монтажа и ремонта оборудования систем водоснабжения, водоотведения и отопления; "]
["совершении действий в критических ситуациях при эксплуатации оборудования систем водоснабжения, водоотведения и отопления жилищно-коммунального хозяйства","осуществлять монтаж и ремонт систем водоснабжения, водоотведения и отопления санитарно-технического оборудования с использованием ручного и механизированного инструмента, приспособлений и материалов; ","приемы и методы минимизации издержек на объектах жилищно коммунального хозяйства; "]
[null,"проводить испытания отремонтированных систем и оборудования жилищно-коммунального хозяйства;","основы «бережливого производства», повышающих качество и \nпроизводительность труда на объектах жилищно-коммунального хозяйства; "]
[null,"проводить плановый осмотр оборудования систем водоснабжения, водоотведения и отопления жилищно-коммунального хозяйства; ","компьютерные системы управления обслуживанием и ремонтом; "]
[null,"заполнять техническую документацию по результатам осмотра; \nвыполнять профилактические работы, способствующие эффективной работе санитарно-технических систем; ","методы и приемы расчета необходимых материалов и оборудования при ремонте и монтаже отдельных узлов систем водоснабжения, водоотведения и отопления; "]
[null,"выполнять гидравлическое испытание системы отопления, \nводоснабжения, в том числе поливочной системы и системы \nпротивопожарного водопровода; ","виды ремонта оборудования: текущий, капитальный (объем, \nпериодичность, продолжительность, трудоемкость, количество);"]
[null,"подготавливать внутридомовые системы водоснабжения, отопления в том числе поливочной системы и системы противопожарного водопровода к сезонной эксплуатации; выполнять консервацию внутридомовых систем; ","сущность и содержание технического обслуживания оборудования систем водоснабжения, водоотведения и отопления; "]
[null,"определять причины и устранять неисправности оборудования систем водоснабжения, водоотведения и отопления жилищно-коммунального хозяйства;","виды технического обслуживания: текущее (внутрисменное) \nобслуживание, профилактические осмотры, периодические осмотры, надзор; "]
[null,"проводить испытания отремонтированных систем и оборудования жилищно-коммунального хозяйства; ","правила заполнения технической документации; \nосновные понятия систем автоматического управления и \nрегулирования; "]
[null,"использовать необходимые инструменты, приспособления и материалы при выполнении ремонтных работ","устройство и правила эксплуатации применяемых инструментов, приспособлений; "]
[null,null,"порядок сдачи после ремонта и испытаний оборудования систем водоснабжения, водоотведения и отопления объектов жилищно коммунального хозяйства; "]
[]
["08.02.13 Монтаж и эксплуатация внутренних сантехнических устройств, кондиционирования воздуха и вентиляции"]
["3.4.1. Поддержание рабочего состояния оборудования систем водоснабжения, водоотведения, отопления объектов жилищно-коммунального хозяйства:\n"]
["ПК 1.1. Выполнять подготовительные работы при монтажесистем отопления, водоснабжения, канализации и водостоков.\n"]
["ПК 1.2. Выполнять монтаж систем отопления, водоснабжения, канализации и водостоков."]
["ПК 1.3. Проводить и обрабатывать результаты испытаний систем отопления, водоснабжения, канализации и водостоков."]
["ПК 1.4.Устранять неисправности отопления, водоснабжения, канализации и водостоков при испытаниях."]
["Иметь практический опыт в","Уметь","Знать"]
["в приемке, транспортировке и хранении санитарно-технического оборудования;\n\n\n\n\n\n","Использовать сопроводительную документацию для проверки\nкомплектности и качества изготовления санитарно-технического оборудования;\n\n\n\n\n\n\n","Виды, назначения и принципы действия санитарно-технических систем и оборудования;\n\n\n\n\n\n\n\n"]
["в демонтаже санитарно-технических систем;","Читать чертежи при выполнении подготовительных работ по\nмонтажу санитарно-технических систем и оборудования;","Правила строповки, перемещения и складирования грузов\nсогласно маркировке;"]
["в выборе инструмента и приспособлений, необходимых для\nвыполнения монтажа санитарно-технических систем;","Применять правила такелажных работ;","Назначения и правила применения инструментов и\nприспособлений, необходимых при монтаже санитарно-технических систем и оборудования;"]
["в укрупнительной сборке отдельных узлов санитарно-технических систем;","Выполнять соединения санитарно-технических систем;","Требования охраны труда, пожарной и экологической\nбезопасности при выполнении подготовительных работ при\nмонтаже санитарно-технических систем и оборудования;"]
["в выполнении слесарных операций при монтаже систем\nотопления, водоснабжения, канализации и водостоков;","Производить демонтаж санитарно-технических систем и\nоборудования;","Монтажные чертежи внутренних санитарно-технических\nсистем и оборудования;"]
["в монтаже санитарно-технических систем и оборудования;\n","Выполнять работы по монтажу санитарно-технических систем\nи оборудования с соблюдением требований охраны труда,\nпожарной и экологической безопасности;","Назначение и правила использования контрольноизмерительного инструмента при монтаже санитарнотехнических систем и оборудования;"]
["в проведении испытаний и сдаче в эксплуатацию систем\nотопления, водоснабжения, канализации и водостоков;","Использовать проектную и нормативную техническую\nдокументацию в области монтажа систем отопления;","Требования охраны труда при монтаже санитарнотехнических систем и оборудования;"]
["в составлении актов выполненных работ по испытанию\nсистем отопления, водоснабжения, канализации и водостоков;","Читать монтажные чертежи систем отопления;","Требования, предъявляемые к качеству выполняемых работ\nпо монтажу систем отопления, водоснабжения, канализации и\nводостоков;"]
["в устранении обнаруженных дефектов на смонтированном\nсанитарно-техническом оборудовании.","Проводить испытания санитарно-технических систем и\nоборудования;","Нормативные технические документы и технологическую\nпоследовательность выполнения монтажных работ;"]
[null,"Использовать графические компьютерные программы и\nкомплексы при монтаже систем отопления;","Правила проведения испытаний инженерно- технических\nсистем гражданских зданий;"]
[null,"Использовать диагностические и измерительные инструменты\nи приборы для проведения испытаний санитарно-технических\nсистем и оборудования;","Правила оформления технической документации;"]
[null,"Применять технологическую документацию при проведении\nиспытаний санитарно-технических систем и оборудования;","Требования, предъявляемые к качеству выполняемых работ\nпри проведении испытаний санитарно-технических систем и\nоборудования;"]
[null,"Выполнять работы по проведению испытаний санитарнотехнических систем и оборудования с соблюдением\nтребований охраны труда, пожарной и экологической\nбезопасности;","Требования охраны труда при проведении испытаний\nинженерно- технических систем гражданских зданий;"]
[null,"Обрабатывать результаты испытаний систем отопления,\nводоснабжения, канализации и водостоков;","Правила устранения неисправностей санитарно-технических\nсистем отопления, водоснабжения, канализации и водостоков;"]
[null,"Выявлять отклонения анализируемых показателей при\nпроведении испытаний систем отопления, водоснабжения,\nканализации и водостоков;","Методики проведения анализа дефектов смонтированных\nсанитарно-технических систем и способы их устранения;"]
[null,"Оформлять техническую документацию по результатам\nиспытаний систем центрального отопления, водоснабжения,\nканализации и водостоков;","Виды несоответствий смонтированных санитарнотехнических систем и способы их устранения;\n"]
[null,"Устранять неисправности на смонтированном санитарнотехническом оборудовании, выявленных при испытаниях.","Требования охраны труда."]
[]
["ФГОС 08.02.07 МОНТАЖ И ЭКСПЛУАТАЦИЯ ВНУТРЕННИХ САНТЕХНИЧЕСКИХ УСТРОЙСТВ, КОНДИЦИОНИРОВАНИЯ ВОЗДУХА И ВЕНТИЛЯЦИИ"]
["3.4.1. Организация и контроль работ по монтажу систем водоснабжения и водоотведения, отопления, вентиляции и кондиционирования воздуха:"]
["ПК 1.1. Организовывать и выполнять подготовку систем и объектов к монтажу;"]
["ПК 1.2. Организовывать и выполнять монтаж систем водоснабжения и водоотведения, отопления, вентиляции и кондиционирования воздуха;"]
["ПК 1.3. Организовывать и выполнять производственный контроль качества монтажных работ;"]
["ПК 1.4. Выполнять пусконаладочные работы систем водоснабжения и водоотведения, отопления, вентиляции и кондиционирование воздуха;"]
["Иметь практический опыт в","Уметь","Знать"]
["организации и выполнении монтажа систем водоснабжения и водоотведения, отопления, вентиляции и кондиционирования воздуха;","использовать сопроводительную документацию для проверки комплектности и качества изготовления оборудования санитарно-технических систем, вентиляции и кондиционирования воздуха;","классификацию систем водоснабжения и водоотведения, отопления, вентиляции и кондиционирования воздуха;"]
["выполнении пусконаладочных работ систем водоснабжения и водоотведения, отопления, вентиляции и кондиционирования воздуха.","читать и разрабатывать монтажные чертежи систем водоснабжения и водоотведения, отопления, вентиляции и кондиционирования воздуха;","назначение и правила применения ручных инструментов и приспособлений, необходимых при монтаже систем водоснабжения и водоотведения, отопления, вентиляции и кондиционирования воздуха;"]
[null,"составлять ведомости выявленных дефектов (для поставщика оборудования) с целью их устранения;","состав комплекта технической документации и комплектность оборудования и материалов;"]
[null,"оформлять техническую документацию по результатам испытаний;","проектную и нормативную документацию в области монтажа и испытаний систем водоснабжения и водоотведения, отопления, вентиляции и кондиционирования воздуха;"]
[null,"проводить регулирование смонтированных сантехнических систем, вентиляции и кондиционирования воздуха для достижения проектных и паспортных характеристик;","технологию изготовления узлов и деталей трубопроводов и воздуховодов из различных материалов;"]
[null,"руководить работниками в рамках подразделения при выполнении работ по монтажу систем водоснабжения и водоотведения, отопления, вентиляции и кондиционирования воздуха;","технологию сборки монтажных узлов и требования к качеству их изготовления;"]
[null,"производить измерение производительности и давления вентилятора в характерных точках системы;","основы монтажного проектирования;"]
[null,"пользоваться контрольно-измерительными приборами.","правила по охране труда при подготовке оборудования, узлов и деталей к монтажу в соответствии с проектом производства работ;"]
[null,null,"правила по охране труда при монтаже систем вентиляции и кондиционирования воздуха;"]
[null,null,"технологию монтажных работ систем вентиляции;"]
[null,null,"проектную и нормативную документацию по монтажу систем кондиционирования;"]
[null,null,"способы соединения медных труб;"]
[null,null,"методы проведения измерений гидравлических и аэродинамических характеристик монтируемой системы;"]
[null,null,"принципы работы измерительных приборов и правила пуска и регулирования отдельных элементов и системы в целом;"]
[null,null,"принципы работы монтируемых систем и их элементов;"]
[null,null,"методику проведения регулирования смонтированных систем и отдельных элементов;"]
[null,null,"теплоизоляционный материал и способы работы с ним;"]
[null,null,"правила пайки твердым припоем;"]
[null,null,"особенности менеджмента в соответствующей области профессиональной деятельности."]
[]
["ЕТКС работ и профессий рабочих. Выпуск 3. § 201. Монтажник санитарно-технических систем и оборудования 3-го разряда"]
["Характеристика работ.","Выполнение простых работ при монтаже и ремонте систем центрального отопления, водоснабжения, канализации, газоснабжения и водостоков."]
[null,"Свертывание и сборка простых узлов."]
[null,"Сборка фланцевых соединений."]
[null,"Разборка отдельных узлов трубопроводов (при монтаже)."]
[null,"Установка и заделка креплений под приборы и трубопроводы."]
[null,"Сверление или пробивка отверстий в конструкциях."]
[null,"Заделка раструбов чугунных трубопроводов."]
[null,"Нарезка резьбы на трубах вручную."]
[null,"Комплектование труб и фасонных частей стояков."]
[null,"Установка ручного пресса для опрессовки систем."]
[null,"Отсоединение чугунных котлов от трубопроводов."]
[null,"Обрубка кромок швов жаротрубного котла для последующей подварки."]
[null,"Очистка секций чугунного котла снаружи и изнутри с промывкой."]
[null,"Срубка заклепок жаротрубного котла с выбиванием их."]
[null,"Смена манжет у унитаза."]
[null,"Зачистка сварных швов шлифмашинкой."]
[null,"Прокачка канализационных стояков и отводов."]
[null,"Смена прокладок кранов, вентилей."]
["Должен знать:","виды основных деталей санитарно-технических систем, соединений труб и креплений трубопроводов; "]
[null,"назначение, устройство и особенности монтажа внутренних систем центрального отопления, водоснабжения, канализации, газоснабжения и водостоков;"]
[null,"способы сверления и пробивки отверстий;"]
[null,"правила транспортировки баллонов с кислородом и ацетиленом;"]
[null,"правила техники безопасности при транспортировке баллонов;"]
[null,"правила пользования механизированным инструментом."]
[]
["ЕТКС работ и профессий рабочих. Выпуск 2. Часть 2. § 161. Слесарь-сантехник 3-го разряда"]
["Характеристика работ.","Разборка, ремонт и сборка различных деталей и узлов санитарно-технических систем центрального отопления, водоснабжения, канализации и водостоков."]
[null,"Сверление или пробивка отверстий в конструкциях."]
[null,"Нарезка резьб на трубах вручную."]
[null,"Установка и заделка креплений под трубопроводы и приборы."]
[null,"Комплектование труб и фасонных частей стояков."]
["Должен знать:","принцип действия, назначение и особенности ремонта санитарно-технических трубопроводных систем центрального отопления, водоснабжения, канализации и водостоков;"]
[null,"виды основных деталей санитарно-технических систем, соединений труб и креплений трубопроводов;"]
[null,"способы сверления и пробивки отверстий;"]
[null,"правила обращения и транспортирования баллонов с кислородом и ацетиленом;"]
[null,"назначение и правила пользования механизированным инструментом."]

{"sheet":"ПС16.086 B 02.3 ","index":6,"n_rows":127,"n_cols":3,"rows_kept":127,"merged":[[0,0,0,2],[17,0,17,2],[18,0,18,2],[19,0,19,2],[20,0,20,2],[38,0,38,2],[39,0,39,2],[40,0,40,2],[41,0,41,2],[42,0,42,2],[43,0,43,2],[63,0,63,2],[64,0,64,2],[65,0,65,2],[66,0,66,2],[67,0,67,2],[68,0,68,2],[90,0,90,2],[91,0,108,0],[91,1,91,2],[92,1,92,2],[93,1,93,2],[94,1,94,2],[95,1,95,2],[96,1,96,2],[97,1,97,2],[98,1,98,2],[99,1,99,2],[100,1,100,2],[101,1,101,2],[102,1,102,2],[103,1,103,2],[104,1,104,2],[105,1,105,2],[106,1,106,2],[107,1,107,2],[108,1,108,2],[109,0,114,0],[109,1,109,2],[110,1,110,2],[111,1,111,2],[112,1,112,2],[113,1,113,2],[114,1,114,2],[116,0,116,2],[117,0,121,0],[117,1,117,2],[118,1,118,2],[119,1,119,2],[120,1,120,2],[121,1,121,2],[122,0,126,0],[122,1,122,2],[123,1,123,2],[124,1,124,2],[125,1,125,2],[126,1,126,2]]}
["Профстандарт 16.086 B/02.3"]
["Трудовые действия","Умения","Знания"]
["Подбор и проверка материалов и инструментов в соответствии с полученным заданием на проведение работ по облуживанию, ремонту канализационных сетей и устранению аварий на канализационных сетях (в границах эксплуатационной ответственности - до первого смотрового колодца)","Выполнять работы с соблюдением требований охраны труда, пожарной и экологической безопасности","Требования охраны труда, пожарной и экологической безопасности"]
["Ограждение зон, представляющих опасность для населения, в местах обнаружения аварийных ситуаций","Применять механизированный и ручной инструмент по назначению и в соответствии с видом работ","Технология и техника земляных работ на канализационных сетях (в границах эксплуатационной ответственности - до первого смотрового колодца)"]
["Работа в одном звене с трактористом, экскаваторщиком при выполнении земляных работ на канализационных сетях (в границах эксплуатационной ответственности - до первого смотрового колодца)","Работать с инструментом, используемым при прочистке канализационных сетей гибким валом и гидравлическим способом","Способы выявления наличия газа в колодцах"]
["Проверка наличия газа в колодцах","Оценивать состояние трубопроводов и санитарно-технических приборов","Технология и техника прочистки канализационных сетей на глубине до 8 м различными способами"]
["Прочистка канализационной сети и коллекторов гидравлическим способом","Определять наличие утечек и засоров","Технология и техника устранения протечек и засоров системы водоотведения, внутренних водостоков"]
["Устранение засоров в системах водоотведения (канализации), внутренних водостоков и санитарно-технических приборах","Выполнять прочистку стояков и лежаков, гидравлических затворов","Химический состав, структура и свойства веществ, используемых в трудовой деятельности"]
["Выполнение простых слесарных работ на канализационных сетях (в границах эксплуатационной ответственности - до первого смотрового колодца)","Выполнять подчеканку раструбов канализационных труб","Виды и назначение ограждений в местах обнаружения аварийных ситуаций"]
["Информирование работника более высокого уровня квалификации в случае затруднения выполнения работ","Выполнять крепление трубопроводов и санитарно-технических приборов","Виды, назначение и правила применения ручного и механизированного инструмента"]
["Прочистка и восстановление работоспособности стояков и лежаков системы канализации","Пользоваться средствами связи","Нормативные уклоны трубопроводов, каналов и лотков"]
["Прочистка и восстановление работоспособности гидравлических затворов (сифонов)"]
["Устранение протечек в раструбных соединениях и в местах присоединения санитарно-технических приборов к трубопроводу"]
["Восстановление крепления трубопроводов системы водоотведения, внутренних водостоков"]
["Укрепление расшатавшихся санитарно-технических приборов"]
["Информирование работника более высокого уровня квалификации при выявлении неисправностей, обнаружении дефектов или низкого качества материалов, а также работ, выполненных с отклонением от проекта или технических условий"]
[]
["ФГОС  08.01.29 Мастер по ремонту и обслуживанию инженерных систем жилищно-коммунального хозяйства"]
["3.4.1. Выполнение работ по ремонту, монтажу и эксплуатации систем водоснабжения, водоотведения и отопления систем жилищно-коммунального хозяйства:"]
["ПК 1.1. Выполнять ремонт и монтаж систем водоснабжения, водоотведения и отопления. "]
["ПК 1.2. Выполнять эксплуатацию системы водоснабжения, водоотведения и отопления."]
["Иметь практический опыт в","Уметь","Знать"]
["подготовки объекта к ремонту и монтажу систем водоснабжения, водоотведения и отопления в соответствии с проектом производства работ, стандартами рабочего места и охраны труда;\n\n\n\n\n","оценивать состояние рабочего места на соответствие требованиям охраны труда;\n\n\n\n\n\n\n\n\n\n","требования по охране труда при проведении работ по ремонту и монтажу систем водоснабжения, водоотведения и отопления объектов жилищно-коммунального хозяйства; \n\n\n\n\n\n\n\n\n"]
["выполнения подготовительных работ при монтаже и ремонте систем водоснабжения, водоотведения и отопления;","определять исправность средств индивидуальной защиты;\n","виды и основные правила построения чертежей, эскизов и схем систем водоснабжения, водоотведения и отопления объектов жилищно коммунального хозяйства; "]
["подготовки основных и вспомогательных материалов для ремонта и монтажа систем водоснабжения, водоотведения и отопления; ","читать и выполнять чертежи, эскизы и схемы систем водоснабжения, водоотведения и отопления объектов жилищно-коммунального хозяйства; ","проектной технической документации для выполнения монтажных работ системы водоснабжения, водоотведения, отопления;"]
["проведения работ по ремонту и монтажу оборудования систем \nводоснабжения, водоотведения и отопления зданий и сооружений жилищно-коммунального хозяйства;","подбирать материалы, инструменты и оборудование для монтажа и ремонта;","виды, назначения, устройства и принципов работы систем \nводоснабжения, водоотведения и отопления;"]
["\nпроведения работ по эксплуатации оборудования систем \nводоснабжения, водоотведения и отопления зданий и сооружений жилищно-коммунального хозяйства;","проводить техническое обслуживание оборудования систем \nводоснабжения, водоотведения и отопления объектов жилищно коммунального хозяйства; ","сущность, технологии и содержание монтажа и ремонта оборудования систем водоснабжения, водоотведения и отопления; "]
["совершении действий в критических ситуациях при эксплуатации оборудования систем водоснабжения, водоотведения и отопления жилищно-коммунального хозяйства","осуществлять монтаж и ремонт систем водоснабжения, водоотведения и отопления санитарно-технического оборудования с использованием ручного и механизированного инструмента, приспособлений и материалов; ","приемы и методы минимизации издержек на объектах жилищно коммунального хозяйства; "]
[null,"проводить испытания отремонтированных систем и оборудования жилищно-коммунального хозяйства;","основы «бережливого производства», повышающих качество и \nпроизводительность труда на объектах жилищно-коммунального хозяйства; "]
[null,"проводить плановый осмотр оборудования систем водоснабжения, водоотведения и отопления жилищно-коммунального хозяйства; ","компьютерные системы управления обслуживанием и ремонтом; "]
[null,"заполнять техническую документацию по результатам осмотра; \nвыполнять профилактические работы, способствующие эффективной работе санитарно-технических систем; ","методы и приемы расчета необходимых материалов и оборудования при ремонте и монтаже отдельных узлов систем водоснабжения, водоотведения и отопления; "]
[null,"выполнять гидравлическое испытание системы отопления, \nводоснабжения, в том числе поливочной системы и системы \nпротивопожарного водопровода; ","виды ремонта оборудования: текущий, капитальный (объем, \nпериодичность, продолжительность, трудоемкость, количество);"]
[null,"подготавливать внутридомовые системы водоснабжения, отопления в том числе поливочной системы и системы противопожарного водопровода к сезонной эксплуатации; выполнять консервацию внутридомовых систем; ","сущность и содержание технического обслуживания оборудования систем водоснабжения, водоотведения и отопления; "]
[null,"определять причины и устранять неисправности оборудования систем водоснабжения, водоотведения и отопления жилищно-коммунального хозяйства;","виды технического обслуживания: текущее (внутрисменное) \nобслуживание, профилактические осмотры, периодические осмотры, надзор; "]
[null,"проводить испытания отремонтированных систем и оборудования жилищно-коммунального хозяйства; ","правила заполнения технической документации; \nосновные понятия систем автоматического управления и \nрегулирования; "]
[null,"использовать необходимые инструменты, приспособления и материалы при выполнении ремонтных работ","устройство и правила эксплуатации применяемых инструментов, приспособлений; "]
[null,null,"порядок сдачи после ремонта и испытаний оборудования систем водоснабжения, водоотведения и отопления объектов жилищно коммунального хозяйства; "]
[]
["08.02.13 Монтаж и эксплуатация внутренних сантехнических устройств, кондиционирования воздуха и вентиляции"]
["3.4.1. Поддержание рабочего состояния оборудования систем водоснабжения, водоотведения, отопления объектов жилищно-коммунального хозяйства:\n"]
["ПК 1.1. Выполнять подготовительные работы при монтажесистем отопления, водоснабжения, канализации и водостоков.\n"]
["ПК 1.2. Выполнять монтаж систем отопления, водоснабжения, канализации и водостоков."]
["ПК 1.3. Проводить и обрабатывать результаты испытаний систем отопления, водоснабжения, канализации и водостоков."]
["ПК 1.4.Устранять неисправности отопления, водоснабжения, канализации и водостоков при испытаниях."]
["Иметь практический опыт в","Уметь","Знать"]
["в приемке, транспортировке и хранении санитарно-технического оборудования;\n\n\n\n\n\n","Использовать сопроводительную документацию для проверки\nкомплектности и качества изготовления санитарно-технического оборудования;\n\n\n\n\n\n\n","Виды, назначения и принципы действия санитарно-технических систем и оборудования;\n\n\n\n\n\n\n\n"]
["в демонтаже санитарно-технических систем;","Читать чертежи при выполнении подготовительных работ по\nмонтажу санитарно-технических систем и оборудования;","Правила строповки, перемещения и складирования грузов\nсогласно маркировке;"]
["в выборе инструмента и приспособлений, необходимых для\nвыполнения монтажа санитарно-технических систем;","Применять правила такелажных работ;","Назначения и правила применения инструментов и\nприспособлений, необходимых при монтаже санитарно-технических систем и оборудования;"]
["в укрупнительной сборке отдельных узлов санитарно-технических систем;","Выполнять соединения санитарно-технических систем;","Требования охраны труда, пожарной и экологической\nбезопасности при выполнении подготовительных работ при\nмонтаже санитарно-технических систем и оборудования;"]
["в выполнении слесарных операций при монтаже систем\nотопления, водоснабжения, канализации и водостоков;","Производить демонтаж санитарно-технических систем и\nоборудования;","Монтажные чертежи внутренних санитарно-технических\nсистем и оборудования;"]
["в монтаже санитарно-технических систем и оборудования;\n","Выполнять работы по монтажу санитарно-технических систем\nи оборудования с соблюдением требований охраны труда,\nпожарной и экологической безопасности;","Назначение и правила использования контрольноизмерительного инструмента при монтаже санитарнотехнических систем и оборудования;"]
["в проведении испытаний и сдаче в эксплуатацию систем\nотопления, водоснабжения, канализации и водостоков;","Использовать проектную и нормативную техническую\nдокументацию в области монтажа систем отопления;","Требования охраны труда при монтаже санитарнотехнических систем и оборудования;"]
["в составлении актов выполненных работ по испытанию\nсистем отопления, водоснабжения, канализации и водостоков;","Читать монтажные чертежи систем отопления;","Требования, предъявляемые к качеству выполняемых работ\nпо монтажу систем отопления, водоснабжения, канализации и\nводостоков;"]
["в устранении обнаруженных дефектов на смонтированном\nсанитарно-техническом оборудовании.","Проводить испытания санитарно-технических систем и\nоборудования;","Нормативные технические документы и технологическую\nпоследовательность выполнения монтажных работ;"]
[null,"Использовать графические компьютерные программы и\nкомплексы при монтаже систем отопления;","Правила проведения испытаний инженерно- технических\nсистем гражданских зданий;"]
[null,"Использовать диагностические и измерительные инструменты\nи приборы для проведения испытаний санитарно-технических\nсистем и оборудования;","Правила оформления технической документации;"]
[null,"Применять технологическую документацию при проведении\nиспытаний санитарно-технических систем и оборудования;","Требования, предъявляемые к качеству выполняемых работ\nпри проведении испытаний санитарно-технических систем и\nоборудования;"]
[null,"Выполнять работы по проведению испытаний санитарнотехнических систем и оборудования с соблюдением\nтребований охраны труда, пожарной и экологической\nбезопасности;","Требования охраны труда при проведении испытаний\nинженерно- технических систем гражданских зданий;"]
[null,"Обрабатывать результаты испытаний систем отопления,\nводоснабжения, канализации и водостоков;","Правила устранения неисправностей санитарно-технических\nсистем отопления, водоснабжения, канализации и водостоков;"]
[null,"Выявлять отклонения анализируемых показателей при\nпроведении испытаний систем отопления, водоснабжения,\nканализации и водостоков;","Методики проведения анализа дефектов смонтированных\nсанитарно-технических систем и способы их устранения;"]
[null,"Оформлять техническую документацию по результатам\nиспытаний систем центрального отопления, водоснабжения,\nканализации и водостоков;","Виды несоответствий смонтированных санитарнотехнических систем и способы их устранения;\n"]
[null,"Устранять неисправности на смонтированном санитарнотехническом оборудовании, выявленных при испытаниях.","Требования охраны труда."]
[]
["ФГОС 08.02.07 МОНТАЖ И ЭКСПЛУАТАЦИЯ ВНУТРЕННИХ САНТЕХНИЧЕСКИХ УСТРОЙСТВ, КОНДИЦИОНИРОВАНИЯ ВОЗДУХА И ВЕНТИЛЯЦИИ"]
["3.4.1. Организация и контроль работ по монтажу систем водоснабжения и водоотведения, отопления, вентиляции и кондиционирования воздуха:"]
["ПК 1.1. Организовывать и выполнять подготовку систем и объектов к монтажу;"]
["ПК 1.2. Организовывать и выполнять монтаж систем водоснабжения и водоотведения, отопления, вентиляции и кондиционирования воздуха;"]
["ПК 1.3. Организовывать и выполнять производственный контроль качества монтажных работ;"]
["ПК 1.4. Выполнять пусконаладочные работы систем водоснабжения и водоотведения, отопления, вентиляции и кондиционирование воздуха;"]
["Иметь практический опыт в","Уметь","Знать"]
["организации и выполнении монтажа систем водоснабжения и водоотведения, отопления, вентиляции и кондиционирования воздуха;","использовать сопроводительную документацию для проверки комплектности и качества изготовления оборудования санитарно-технических систем, вентиляции и кондиционирования воздуха;","классификацию систем водоснабжения и водоотведения, отопления, вентиляции и кондиционирования воздуха;"]
["выполнении пусконаладочных работ систем водоснабжения и водоотведения, отопления, вентиляции и кондиционирования воздуха.","читать и разрабатывать монтажные чертежи систем водоснабжения и водоотведения, отопления, вентиляции и кондиционирования воздуха;","назначение и правила применения ручных инструментов и приспособлений, необходимых при монтаже систем водоснабжения и водоотведения, отопления, вентиляции и кондиционирования воздуха;"]
[null,"составлять ведомости выявленных дефектов (для поставщика оборудования) с целью их устранения;","состав комплекта технической документации и комплектность оборудования и материалов;"]
[null,"оформлять техническую документацию по результатам испытаний;","проектную и нормативную документацию в области монтажа и испытаний систем водоснабжения и водоотведения, отопления, вентиляции и кондиционирования воздуха;"]
[null,"проводить регулирование смонтированных сантехнических систем, вентиляции и кондиционирования воздуха для достижения проектных и паспортных характеристик;","технологию изготовления узлов и деталей трубопроводов и воздуховодов из различных материалов;"]
[null,"руководить работниками в рамках подразделения при выполнении работ по монтажу систем водоснабжения и водоотведения, отопления, вентиляции и кондиционирования воздуха;","технологию сборки монтажных узлов и требования к качеству их изготовления;"]
[null,"производить измерение производительности и давления вентилятора в характерных точках системы;","основы монтажного проектирования;"]
[null,"пользоваться контрольно-измерительными приборами.","правила по охране труда при подготовке оборудования, узлов и деталей к монтажу в соответствии с проектом производства работ;"]
[null,null,"правила по охране труда при монтаже систем вентиляции и кондиционирования воздуха;"]
[null,null,"технологию монтажных работ систем вентиляции;"]
[null,null,"проектную и нормативную документацию по монтажу систем кондиционирования;"]
[null,null,"способы соединения медных труб;"]
[null,null,"методы проведения измерений гидравлических и аэродинамических характеристик монтируемой системы;"]
[null,null,"принципы работы измерительных приборов и правила пуска и регулирования отдельных элементов и системы в целом;"]
[null,null,"принципы работы монтируемых систем и их элементов;"]
[null,null,"методику проведения регулирования смонтированных систем и отдельных элементов;"]
[null,null,"теплоизоляционный материал и способы работы с ним;"]
[null,null,"правила пайки твердым припоем;"]
[null,null,"особенности менеджмента в соответствующей области профессиональной деятельности."]
[]
["ЕТКС работ и профессий рабочих. Выпуск 3. § 201. Монтажник санитарно-технических систем и оборудования 3-го разряда"]
["Характеристика работ.","Выполнение простых работ при монтаже и ремонте систем центрального отопления, водоснабжения, канализации, газоснабжения и водостоков."]
[null,"Свертывание и сборка простых узлов."]
[null,"Сборка фланцевых соединений."]
[null,"Разборка отдельных узлов трубопроводов (при монтаже)."]
[null,"Установка и заделка креплений под приборы и трубопроводы."]
[null,"Сверление или пробивка отверстий в конструкциях."]
[null,"Заделка раструбов чугунных трубопроводов."]
[null,"Нарезка резьбы на трубах вручную."]
[null,"Комплектование труб и фасонных частей стояков."]
[null,"Установка ручного пресса для опрессовки систем."]
[null,"Отсоединение чугунных котлов от трубопроводов."]
[null,"Обрубка кромок швов жаротрубного котла для последующей подварки."]
[null,"Очистка секций чугунного котла снаружи и изнутри с промывкой."]
[null,"Срубка заклепок жаротрубного котла с выбиванием их."]
[null,"Смена манжет у унитаза."]
[null,"Зачистка сварных швов шлифмашинкой."]
[null,"Прокачка канализационных стояков и отводов."]
[null,"Смена прокладок кранов, вентилей."]
["Должен знать:","виды основных деталей санитарно-технических систем, соединений труб и креплений трубопроводов; "]
[null,"назначение, устройство и особенности монтажа внутренних систем центрального отопления, водоснабжения, канализации, газоснабжения и водостоков;"]
[null,"способы сверления и пробивки отверстий;"]
[null,"правила транспортировки баллонов с кислородом и ацетиленом;"]
[null,"правила техники безопасности при транспортировке баллонов;"]
[null,"правила пользования механизированным инструментом."]
[]
["ЕТКС работ и профессий рабочих. Выпуск 2. Часть 2. § 161. Слесарь-сантехник 3-го разряда"]
["Характеристика работ.","Разборка, ремонт и сборка различных деталей и узлов санитарно-технических систем центрального отопления, водоснабжения, канализации и водостоков."]
[null,"Сверление или пробивка отверстий в конструкциях."]
[null,"Нарезка резьб на трубах вручную."]
[null,"Установка и заделка креплений под трубопроводы и приборы."]
[null,"Комплектование труб и фасонных частей стояков."]
["Должен знать:","принцип действия, назначение и особенности ремонта санитарно-технических трубопроводных систем центрального отопления, водоснабжения, канализации и водостоков;"]
[null,"виды основных деталей санитарно-технических систем, соединений труб и креплений трубопроводов;"]
[null,"способы сверления и пробивки отверстий;"]
[null,"правила обращения и транспортирования баллонов с кислородом и ацетиленом;"]
[null,"назначение и правила пользования механизированным инструментом."]

{"sheet":"ПС16.086 B 03.3","index":7,"n_rows":123,"n_cols":3,"rows_kept":123,"merged":[[0,0,0,2],[13,0,13,2],[14,0,14,2],[15,0,15,2],[16,0,16,2],[34,0,34,2],[35,0,35,2],[36,0,36,2],[37,0,37,2],[38,0,38,2],[39,0,39,2],[59,0,59,2],[60,0,60,2],[61,0,61,2],[62,0,62,2],[63,0,63,2],[64,0,64,2],[86,0,86,2],[87,0,104,0],[87,1,87,2],[88,1,88,2],[89,1,89,2],[90,1,90,2],[91,1,91,2],[92,1,92,2],[93,1,93,2],[94,1,94,2],[95,1,95,2],[96,1,96,2],[97,1,97,2],[98,1,98,2],[99,1,99,2],[100,1,100,2],[101,1,101,2],[102,1,102,2],[103,1,103,2],[104,1,104,2],[105,0,110,0],[105,1,105,2],[106,1,106,2],[107,1,107,2],[108,1,108,2],[109,1,109,2],[110,1,110,2],[112,0,112,2],[113,0,117,0],[113,1,113,2],[114,1,114,2],[115,1,115,2],[116,1,116,2],[117,1,117,2],[118,0,122,0],[118,1,118,2],[119,1,119,2],[120,1,120,2],[121,1,121,2],[122,1,122,2]]}
["Профстандарт 16.086 B/03.3"]
["Трудовые действия","Умения","Знания"]
["Выбор и проверка средств индивидуальной защиты в соответствии с требованиями охраны труда","Определять исправность средств индивидуальной защиты","Требования охраны труда при проведении работ по техническому обслуживанию домовых санитарно-технических систем и оборудования"]
["Подбор и проверка материалов и инструментов в соответствии с полученным заданием","Оценивать состояние рабочего места на соответствие требованиям охраны труда","Технология и техника обслуживания домовых санитарно-технических систем и оборудования"]
["Промывка участков водопровода после выполнения ремонтно-строительных работ на водопроводе","Подбирать инструмент согласно технологическому процессу","Виды, назначение, устройство, принцип работы домовых систем водоснабжения, в том числе поливочной системы и системы противопожарного водопровода"]
["Промывка систем водоснабжения для удаления накипно-коррозионных отложений","Применять ручной и механизированный инструмент по назначению и в соответствии с видом работ","Виды, назначение, устройство, принцип работы повысительных и пожарных насосов"]
["Очистка и промывка водонапорных баков","Применять технологические приемы технического обслуживания системы водоснабжения, в том числе поливочной системы и системы противопожарного водопровода","Виды, назначение и способы применения труб, фитингов, фасонных частей, арматуры, средств крепления, смазочных и эксплуатационных материалов"]
["Устранение течи в трубопроводах и арматуре системы водоснабжения, в том числе поливочной системы и системы противопожарного водопровода","Промывать водонапорные баки, участки водопровода и системы водоснабжения в целом","Виды, назначение и правила применения ручного и механизированного инструмента"]
["Восстановление крепления трубопроводов, приборов и оборудования системы водоснабжения, в том числе поливочной системы и системы противопожарного водопровода","Определять качество и вид труб, фитингов, фасонных частей, арматуры, средств крепления, смазочных и эксплуатационных материалов"]
["Выполнение обслуживания циркуляционных, повысительных и пожарных насосов","Оценивать состояние основного и вспомогательного оборудования системы водоснабжения, в том числе поливочной системы и системы противопожарного водопровода"]
["Очищение от пыли и грязи наружных поверхностей оборудования и контрольно-измерительных приборов системы водоснабжения, в том числе поливочной системы и системы противопожарного водопровода","Выполнять смену прокладок, набивку сальников"]
["Информирование работника более высокого уровня квалификации при выявлении неисправностей, обнаружении дефектов или низкого качества материалов, а также работ, выполненных с отклонением от проекта или технических условий","Выполнять крепление трубопроводов, приборов и оборудования"]
[]
["ФГОС  08.01.29 Мастер по ремонту и обслуживанию инженерных систем жилищно-коммунального хозяйства"]
["3.4.1. Выполнение работ по ремонту, монтажу и эксплуатации систем водоснабжения, водоотведения и отопления систем жилищно-коммунального хозяйства:"]
["ПК 1.1. Выполнять ремонт и монтаж систем водоснабжения, водоотведения и отопления. "]
["ПК 1.2. Выполнять эксплуатацию системы водоснабжения, водоотведения и отопления."]
["Иметь практический опыт в","Уметь","Знать"]
["подготовки объекта к ремонту и монтажу систем водоснабжения, водоотведения и отопления в соответствии с проектом производства работ, стандартами рабочего места и охраны труда;\n\n\n\n\n","оценивать состояние рабочего места на соответствие требованиям охраны труда;\n\n\n\n\n\n\n\n\n\n","требования по охране труда при проведении работ по ремонту и монтажу систем водоснабжения, водоотведения и отопления объектов жилищно-коммунального хозяйства; \n\n\n\n\n\n\n\n\n"]
["выполнения подготовительных работ при монтаже и ремонте систем водоснабжения, водоотведения и отопления;","определять исправность средств индивидуальной защиты;\n","виды и основные правила построения чертежей, эскизов и схем систем водоснабжения, водоотведения и отопления объектов жилищно коммунального хозяйства; "]
["подготовки основных и вспомогательных материалов для ремонта и монтажа систем водоснабжения, водоотведения и отопления; ","читать и выполнять чертежи, эскизы и схемы систем водоснабжения, водоотведения и отопления объектов жилищно-коммунального хозяйства; ","проектной технической документации для выполнения монтажных работ системы водоснабжения, водоотведения, отопления;"]
["проведения работ по ремонту и монтажу оборудования систем \nводоснабжения, водоотведения и отопления зданий и сооружений жилищно-коммунального хозяйства;","подбирать материалы, инструменты и оборудование для монтажа и ремонта;","виды, назначения, устройства и принципов работы систем \nводоснабжения, водоотведения и отопления;"]
["\nпроведения работ по эксплуатации оборудования систем \nводоснабжения, водоотведения и отопления зданий и сооружений жилищно-коммунального хозяйства;","проводить техническое обслуживание оборудования систем \nводоснабжения, водоотведения и отопления объектов жилищно коммунального хозяйства; ","сущность, технологии и содержание монтажа и ремонта оборудования систем водоснабжения, водоотведения и отопления; "]
["совершении действий в критических ситуациях при эксплуатации оборудования систем водоснабжения, водоотведения и отопления жилищно-коммунального хозяйства","осуществлять монтаж и ремонт систем водоснабжения, водоотведения и отопления санитарно-технического оборудования с использованием ручного и механизированного инструмента, приспособлений и материалов; ","приемы и методы минимизации издержек на объектах жилищно коммунального хозяйства; "]
[null,"проводить испытания отремонтированных систем и оборудования жилищно-коммунального хозяйства;","основы «бережливого производства», повышающих качество и \nпроизводительность труда на объектах жилищно-коммунального хозяйства; "]
[null,"проводить плановый осмотр оборудования систем водоснабжения, водоотведения и отопления жилищно-коммунального хозяйства; ","компьютерные системы управления обслуживанием и ремонтом; "]
[null,"заполнять техническую документацию по результатам осмотра; \nвыполнять профилактические работы, способствующие эффективной работе санитарно-технических систем; ","методы и приемы расчета необходимых материалов и оборудования при ремонте и монтаже отдельных узлов систем водоснабжения, водоотведения и отопления; "]
[null,"выполнять гидравлическое испытание системы отопления, \nводоснабжения, в том числе поливочной системы и системы \nпротивопожарного водопровода; ","виды ремонта оборудования: текущий, капитальный (объем, \nпериодичность, продолжительность, трудоемкость, количество);"]
[null,"подготавливать внутридомовые системы водоснабжения, отопления в том числе поливочной системы и системы противопожарного водопровода к сезонной эксплуатации; выполнять консервацию внутридомовых систем; ","сущность и содержание технического обслуживания оборудования систем водоснабжения, водоотведения и отопления; "]
[null,"определять причины и устранять неисправности оборудования систем водоснабжения, водоотведения и отопления жилищно-коммунального хозяйства;","виды технического обслуживания: текущее (внутрисменное) \nобслуживание, профилактические осмотры, периодические осмотры, надзор; "]
[null,"проводить испытания отремонтированных систем и оборудования жилищно-коммунального хозяйства; ","правила заполнения технической документации; \nосновные понятия систем автоматического управления и \nрегулирования; "]
[null,"использовать необходимые инструменты, приспособления и материалы при выполнении ремонтных работ","устройство и правила эксплуатации применяемых инструментов, приспособлений; "]
[null,null,"порядок сдачи после ремонта и испытаний оборудования систем водоснабжения, водоотведения и отопления объектов жилищно коммунального хозяйства; "]
[]
["08.02.13 Монтаж и эксплуатация внутренних сантехнических устройств, кондиционирования воздуха и вентиляции"]
["3.4.1. Поддержание рабочего состояния оборудования систем водоснабжения, водоотведения, отопления объектов жилищно-коммунального хозяйства:\n"]
["ПК 1.1. Выполнять подготовительные работы при монтажесистем отопления, водоснабжения, канализации и водостоков.\n"]
["ПК 1.2. Выполнять монтаж систем отопления, водоснабжения, канализации и водостоков."]
["ПК 1.3. Проводить и обрабатывать результаты испытаний систем отопления, водоснабжения, канализации и водостоков."]
["ПК 1.4.Устранять неисправности отопления, водоснабжения, канализации и водостоков при испытаниях."]
["Иметь практический опыт в","Уметь","Знать"]
["в приемке, транспортировке и хранении санитарно-технического оборудования;\n\n\n\n\n\n","Использовать сопроводительную документацию для проверки\nкомплектности и качества изготовления санитарно-технического оборудования;\n\n\n\n\n\n\n","Виды, назначения и принципы действия санитарно-технических систем и оборудования;\n\n\n\n\n\n\n\n"]
["в демонтаже санитарно-технических систем;","Читать чертежи при выполнении подготовительных работ по\nмонтажу санитарно-технических систем и оборудования;","Правила строповки, перемещения и складирования грузов\nсогласно маркировке;"]
["в выборе инструмента и приспособлений, необходимых для\nвыполнения монтажа санитарно-технических систем;","Применять правила такелажных работ;","Назначения и правила применения инструментов и\nприспособлений, необходимых при монтаже санитарно-технических систем и оборудования;"]
["в укрупнительной сборке отдельных узлов санитарно-технических систем;","Выполнять соединения санитарно-технических систем;","Требования охраны труда, пожарной и экологической\nбезопасности при выполнении подготовительных работ при\nмонтаже санитарно-технических систем и оборудования;"]
["в выполнении слесарных операций при монтаже систем\nотопления, водоснабжения, канализации и водостоков;","Производить демонтаж санитарно-технических систем и\nоборудования;","Монтажные чертежи внутренних санитарно-технических\nсистем и оборудования;"]
["в монтаже санитарно-технических систем и оборудования;\n","Выполнять работы по монтажу санитарно-технических систем\nи оборудования с соблюдением требований охраны труда,\nпожарной и экологической безопасности;","Назначение и правила использования контрольноизмерительного инструмента при монтаже санитарнотехнических систем и оборудования;"]
["в проведении испытаний и сдаче в эксплуатацию систем\nотопления, водоснабжения, канализации и водостоков;","Использовать проектную и нормативную техническую\nдокументацию в области монтажа систем отопления;","Требования охраны труда при монтаже санитарнотехнических систем и оборудования;"]
["в составлении актов выполненных работ по испытанию\nсистем отопления, водоснабжения, канализации и водостоков;","Читать монтажные чертежи систем отопления;","Требования, предъявляемые к качеству выполняемых работ\nпо монтажу систем отопления, водоснабжения, канализации и\nводостоков;"]
["в устранении обнаруженных дефектов на смонтированном\nсанитарно-техническом оборудовании.","Проводить испытания санитарно-технических систем и\nоборудования;","Нормативные технические документы и технологическую\nпоследовательность выполнения монтажных работ;"]
[null,"Использовать графические компьютерные программы и\nкомплексы при монтаже систем отопления;","Правила проведения испытаний инженерно- технических\nсистем гражданских зданий;"]
[null,"Использовать диагностические и измерительные инструменты\nи приборы для проведения испытаний санитарно-технических\nсистем и оборудования;","Правила оформления технической документации;"]
[null,"Применять технологическую документацию при проведении\nиспытаний санитарно-технических систем и оборудования;","Требования, предъявляемые к качеству выполняемых работ\nпри проведении испытаний санитарно-технических систем и\nоборудования;"]
[null,"Выполнять работы по проведению испытаний санитарнотехнических систем и оборудования с соблюдением\nтребований охраны труда, пожарной и экологической\nбезопасности;","Требования охраны труда при проведении испытаний\nинженерно- технических систем гражданских зданий;"]
[null,"Обрабатывать результаты испытаний систем отопления,\nводоснабжения, канализации и водостоков;","Правила устранения неисправностей санитарно-технических\nсистем отопления, водоснабжения, канализации и водостоков;"]
[null,"Выявлять отклонения анализируемых показателей при\nпроведении испытаний систем отопления, водоснабжения,\nканализации и водостоков;","Методики проведения анализа дефектов смонтированных\nсанитарно-технических систем и способы их устранения;"]
[null,"Оформлять техническую документацию по результатам\nиспытаний систем центрального отопления, водоснабжения,\nканализации и водостоков;","Виды несоответствий смонтированных санитарнотехнических систем и способы их устранения;\n"]
[null,"Устранять неисправности на смонтированном санитарнотехническом оборудовании, выявленных при испытаниях.","Требования охраны труда."]
[]
["ФГОС 08.02.07 МОНТАЖ И ЭКСПЛУАТАЦИЯ ВНУТРЕННИХ САНТЕХНИЧЕСКИХ УСТРОЙСТВ, КОНДИЦИОНИРОВАНИЯ ВОЗДУХА И ВЕНТИЛЯЦИИ"]
["3.4.1. Организация и контроль работ по монтажу систем водоснабжения и водоотведения, отопления, вентиляции и кондиционирования воздуха:"]
["ПК 1.1. Организовывать и выполнять подготовку систем и объектов к монтажу;"]
["ПК 1.2. Организовывать и выполнять монтаж систем водоснабжения и водоотведения, отопления, вентиляции и кондиционирования воздуха;"]
["ПК 1.3. Организовывать и выполнять производственный контроль качества монтажных работ;"]
["ПК 1.4. Выполнять пусконаладочные работы систем водоснабжения и водоотведения, отопления, вентиляции и кондиционирование воздуха;"]
["Иметь практический опыт в","Уметь","Знать"]
["организации и выполнении монтажа систем водоснабжения и водоотведения, отопления, вентиляции и кондиционирования воздуха;","использовать сопроводительную документацию для проверки комплектности и качества изготовления оборудования санитарно-технических систем, вентиляции и кондиционирования воздуха;","классификацию систем водоснабжения и водоотведения, отопления, вентиляции и кондиционирования воздуха;"]
["выполнении пусконаладочных работ систем водоснабжения и водоотведения, отопления, вентиляции и кондиционирования воздуха.","читать и разрабатывать монтажные чертежи систем водоснабжения и водоотведения, отопления, вентиляции и кондиционирования воздуха;","назначение и правила применения ручных инструментов и приспособлений, необходимых при монтаже систем водоснабжения и водоотведения, отопления, вентиляции и кондиционирования воздуха;"]
[null,"составлять ведомости выявленных дефектов (для поставщика оборудования) с целью их устранения;","состав комплекта технической документации и комплектность оборудования и материалов;"]
[null,"оформлять техническую документацию по результатам испытаний;","проектную и нормативную документацию в области монтажа и испытаний систем водоснабжения и водоотведения, отопления, вентиляции и кондиционирования воздуха;"]
[null,"проводить регулирование смонтированных сантехнических систем, вентиляции и кондиционирования воздуха для достижения проектных и паспортных характеристик;","технологию изготовления узлов и деталей трубопроводов и воздуховодов из различных материалов;"]
[null,"руководить работниками в рамках подразделения при выполнении работ по монтажу систем водоснабжения и водоотведения, отопления, вентиляции и кондиционирования воздуха;","технологию сборки монтажных узлов и требования к качеству их изготовления;"]
[null,"производить измерение производительности и давления вентилятора в характерных точках системы;","основы монтажного проектирования;"]
[null,"пользоваться контрольно-измерительными приборами.","правила по охране труда при подготовке оборудования, узлов и деталей к монтажу в соответствии с проектом производства работ;"]
[null,null,"правила по охране труда при монтаже систем вентиляции и кондиционирования воздуха;"]
[null,null,"технологию монтажных работ систем вентиляции;"]
[null,null,"проектную и нормативную документацию по монтажу систем кондиционирования;"]
[null,null,"способы соединения медных труб;"]
[null,null,"методы проведения измерений гидравлических и аэродинамических характеристик монтируемой системы;"]
[null,null,"принципы работы измерительных приборов и правила пуска и регулирования отдельных элементов и системы в целом;"]
[null,null,"принципы работы монтируемых систем и их элементов;"]
[null,null,"методику проведения регулирования смонтированных систем и отдельных элементов;"]
[null,null,"теплоизоляционный материал и способы работы с ним;"]
[null,null,"правила пайки твердым припоем;"]
[null,null,"особенности менеджмента в соответствующей области профессиональной деятельности."]
[]
["ЕТКС работ и профессий рабочих. Выпуск 3. § 201. Монтажник санитарно-технических систем и оборудования 3-го разряда"]
["Характеристика работ.","Выполнение простых работ при монтаже и ремонте систем центрального отопления, водоснабжения, канализации, газоснабжения и водостоков."]
[null,"Свертывание и сборка простых узлов."]
[null,"Сборка фланцевых соединений."]
[null,"Разборка отдельных узлов трубопроводов (при монтаже)."]
[null,"Установка и заделка креплений под приборы и трубопроводы."]
[null,"Сверление или пробивка отверстий в конструкциях."]
[null,"Заделка раструбов чугунных трубопроводов."]
[null,"Нарезка резьбы на трубах вручную."]
[null,"Комплектование труб и фасонных частей стояков."]
[null,"Установка ручного пресса для опрессовки систем."]
[null,"Отсоединение чугунных котлов от трубопроводов."]
[null,"Обрубка кромок швов жаротрубного котла для последующей подварки."]
[null,"Очистка секций чугунного котла снаружи и изнутри с промывкой."]
[null,"Срубка заклепок жаротрубного котла с выбиванием их."]
[null,"Смена манжет у унитаза."]
[null,"Зачистка сварных швов шлифмашинкой."]
[null,"Прокачка канализационных стояков и отводов."]
[null,"Смена прокладок кранов, вентилей."]
["Должен знать:","виды основных деталей санитарно-технических систем, соединений труб и креплений трубопроводов; "]
[null,"назначение, устройство и особенности монтажа внутренних систем центрального отопления, водоснабжения, канализации, газоснабжения и водостоков;"]
[null,"способы сверления и пробивки отверстий;"]
[null,"правила транспортировки баллонов с кислородом и ацетиленом;"]
[null,"правила техники безопасности при транспортировке баллонов;"]
[null,"правила пользования механизированным инструментом."]
[]
["ЕТКС работ и профессий рабочих. Выпуск 2. Часть 2. § 161. Слесарь-сантехник 3-го разряда"]
["Характеристика работ.","Разборка, ремонт и сборка различных деталей и узлов санитарно-технических систем центрального отопления, водоснабжения, канализации и водостоков."]
[null,"Сверление или пробивка отверстий в конструкциях."]
[null,"Нарезка резьб на трубах вручную."]
[null,"Установка и заделка креплений под трубопроводы и приборы."]
[null,"Комплектование труб и фасонных частей стояков."]
["Должен знать:","принцип действия, назначение и особенности ремонта санитарно-технических трубопроводных систем центрального отопления, водоснабжения, канализации и водостоков;"]
[null,"виды основных деталей санитарно-технических систем, соединений труб и креплений трубопроводов;"]
[null,"способы сверления и пробивки отверстий;"]
[null,"правила обращения и транспортирования баллонов с кислородом и ацетиленом;"]
[null,"назначение и правила пользования механизированным инструментом."]

{"sheet":"ПС16.086 B 04.3","index":8,"n_rows":124,"n_cols":3,"rows_kept":124,"merged":[[0,0,0,2],[14,0,14,2],[15,0,15,2],[16,0,16,2],[17,0,17,2],[35,0,35,2],[36,0,36,2],[37,0,37,2],[38,0,38,2],[39,0,39,2],[40,0,40,2],[60,0,60,2],[61,0,61,2],[62,0,62,2],[63,0,63,2],[64,0,64,2],[65,0,65,2],[87,0,87,2],[88,0,105,0],[88,1,88,2],[89,1,89,2],[90,1,90,2],[91,1,91,2],[92,1,92,2],[93,1,93,2],[94,1,94,2],[95,1,95,2],[96,1,96,2],[97,1,97,2],[98,1,98,2],[99,1,99,2],[100,1,100,2],[101,1,101,2],[102,1,102,2],[103,1,103,2],[104,1,104,2],[105,1,105,2],[106,0,111,0],[106,1,106,2],[107,1,107,2],[108,1,108,2],[109,1,109,2],[110,1,110,2],[111,1,111,2],[113,0,113,2],[114,0,118,0],[114,1,114,2],[115,1,115,2],[116,1,116,2],[117,1,117,2],[118,1,118,2],[119,0,123,0],[119,1,119,2],[120,1,120,2],[121,1,121,2],[122,1,122,2],[123,1,123,2]]}
["Профстандарт 16.086 B/04.3"]
["Трудовые действия","Умения","Знания"]
["Выбор и проверка средств индивидуальной защиты в соответствии с требованиями охраны труда","Определять исправность средств индивидуальной защиты","Требования охраны труда при проведении работ по техническому обслуживанию домовых санитарно-технических систем и оборудования"]
["Подбор и проверка материалов и инструментов в соответствии с полученным заданием","Подбирать инструмент согласно техническому процессу","Технология и техника обслуживания домовых санитарно-технических систем и оборудования"]
["Устранение течи в трубопроводах, водонагревателях, приборах и арматуре системы отопления и горячего водоснабжения","Применять ручной и механизированный инструмент по назначению и в соответствии с видом работ","Виды, назначение, устройство, принцип работы домовых систем отопления и горячего водоснабжения, теплообменников"]
["Устранение местных непрогревов с промывкой нагревательных приборов и участков трубопроводов","Выполнять технологические приемы технического обслуживания системы отопления и горячего водоснабжения","Виды, назначение, устройство, принцип работы циркуляционных насосов"]
["Проведение простых работ по очистке теплообменного оборудования для удаления накипно-коррозионных отложений","Определять качество и вид труб, фитингов, фасонных частей, арматуры, средств крепления, смазочных и эксплуатационных материалов","Виды, назначение и правила применения ручного и механизированного инструмента"]
["Регулировка и техническое обслуживание насосов, запорной арматуры, расширительных баков и элементов, скрытых от постоянного наблюдения (разводящих трубопроводов и оборудования на чердаках, в подвалах и каналах)","Оценивать степень прогрева отопительных приборов","Виды, назначение и способы применения труб, фитингов, фасонных частей, арматуры, средств крепления, смазочных и эксплуатационных материалов"]
["Устранение воздушных пробок в системе отопления","Оценивать состояние основного и вспомогательного оборудования системы отопления и горячего водоснабжения","Принципы гидравлической балансировки системы отопления в МКД"]
["Очистка грязевиков, воздухосборников","Выполнять крепление трубопроводов, приборов и оборудования системы отопления и горячего водоснабжения","Системы отопления в зависимости от конструкции стояков и схем присоединения к ним радиаторов"]
["Восстановление крепления трубопроводов, приборов и оборудования системы отопления и горячего водоснабжения","Пользоваться средствами связи","Параметры давления и температуры, допустимые в системах отопления и горячего водоснабжения, и методика их измерения"]
["Очистка от пыли и грязи наружных поверхностей оборудования и контрольно-измерительных приборов системы отопления и горячего водоснабжения"]
["Информирование работника более высокого уровня квалификации при выявлении неисправностей, обнаружении дефектов или низкого качества материалов, а также работ, выполненных с отклонением от проекта или технических условий"]
[]
["ФГОС  08.01.29 Мастер по ремонту и обслуживанию инженерных систем жилищно-коммунального хозяйства"]
["3.4.1. Выполнение работ по ремонту, монтажу и эксплуатации систем водоснабжения, водоотведения и отопления систем жилищно-коммунального хозяйства:"]
["ПК 1.1. Выполнять ремонт и монтаж систем водоснабжения, водоотведения и отопления. "]
["ПК 1.2. Выполнять эксплуатацию системы водоснабжения, водоотведения и отопления."]
["Иметь практический опыт в","Уметь","Знать"]
["подготовки объекта к ремонту и монтажу систем водоснабжения, водоотведения и отопления в соответствии с проектом производства работ, стандартами рабочего места и охраны труда;\n\n\n\n\n","оценивать состояние рабочего места на соответствие требованиям охраны труда;\n\n\n\n\n\n\n\n\n\n","требования по охране труда при проведении работ по ремонту и монтажу систем водоснабжения, водоотведения и отопления объектов жилищно-коммунального хозяйства; \n\n\n\n\n\n\n\n\n"]
["выполнения подготовительных работ при монтаже и ремонте систем водоснабжения, водоотведения и отопления;","определять исправность средств индивидуальной защиты;\n","виды и основные правила построения чертежей, эскизов и схем систем водоснабжения, водоотведения и отопления объектов жилищно коммунального хозяйства; "]
["подготовки основных и вспомогательных материалов для ремонта и монтажа систем водоснабжения, водоотведения и отопления; ","читать и выполнять чертежи, эскизы и схемы систем водоснабжения, водоотведения и отопления объектов жилищно-коммунального хозяйства; ","проектной технической документации для выполнения монтажных работ системы водоснабжения, водоотведения, отопления;"]
["проведения работ по ремонту и монтажу оборудования систем \nводоснабжения, водоотведения и отопления зданий и сооружений жилищно-коммунального хозяйства;","подбирать материалы, инструменты и оборудование для монтажа и ремонта;","виды, назначения, устройства и принципов работы систем \nводоснабжения, водоотведения и отопления;"]
["\nпроведения работ по эксплуатации оборудования систем \nводоснабжения, водоотведения и отопления зданий и сооружений жилищно-коммунального хозяйства;","проводить техническое обслуживание оборудования систем \nводоснабжения, водоотведения и отопления объектов жилищно коммунального хозяйства; ","сущность, технологии и содержание монтажа и ремонта оборудования систем водоснабжения, водоотведения и отопления; "]
["совершении действий в критических ситуациях при эксплуатации оборудования систем водоснабжения, водоотведения и отопления жилищно-коммунального хозяйства","осуществлять монтаж и ремонт систем водоснабжения, водоотведения и отопления санитарно-технического оборудования с использованием ручного и механизированного инструмента, приспособлений и материалов; ","приемы и методы минимизации издержек на объектах жилищно коммунального хозяйства; "]
[null,"проводить испытания отремонтированных систем и оборудования жилищно-коммунального хозяйства;","основы «бережливого производства», повышающих качество и \nпроизводительность труда на объектах жилищно-коммунального хозяйства; "]
[null,"проводить плановый осмотр оборудования систем водоснабжения, водоотведения и отопления жилищно-коммунального хозяйства; ","компьютерные системы управления обслуживанием и ремонтом; "]
[null,"заполнять техническую документацию по результатам осмотра; \nвыполнять профилактические работы, способствующие эффективной работе санитарно-технических систем; ","методы и приемы расчета необходимых материалов и оборудования при ремонте и монтаже отдельных узлов систем водоснабжения, водоотведения и отопления; "]
[null,"выполнять гидравлическое испытание системы отопления, \nводоснабжения, в том числе поливочной системы и системы \nпротивопожарного водопровода; ","виды ремонта оборудования: текущий, капитальный (объем, \nпериодичность, продолжительность, трудоемкость, количество);"]
[null,"подготавливать внутридомовые системы водоснабжения, отопления в том числе поливочной системы и системы противопожарного водопровода к сезонной эксплуатации; выполнять консервацию внутридомовых систем; ","сущность и содержание технического обслуживания оборудования систем водоснабжения, водоотведения и отопления; "]
[null,"определять причины и устранять неисправности оборудования систем водоснабжения, водоотведения и отопления жилищно-коммунального хозяйства;","виды технического обслуживания: текущее (внутрисменное) \nобслуживание, профилактические осмотры, периодические осмотры, надзор; "]
[null,"проводить испытания отремонтированных систем и оборудования жилищно-коммунального хозяйства; ","правила заполнения технической документации; \nосновные понятия систем автоматического управления и \nрегулирования; "]
[null,"использовать необходимые инструменты, приспособления и материалы при выполнении ремонтных работ","устройство и правила эксплуатации применяемых инструментов, приспособлений; "]
[null,null,"порядок сдачи после ремонта и испытаний оборудования систем водоснабжения, водоотведения и отопления объектов жилищно коммунального хозяйства; "]
[]
["08.02.13 Монтаж и эксплуатация внутренних сантехнических устройств, кондиционирования воздуха и вентиляции"]
["3.4.1. Поддержание рабочего состояния оборудования систем водоснабжения, водоотведения, отопления объектов жилищно-коммунального хозяйства:\n"]
["ПК 1.1. Выполнять подготовительные работы при монтажесистем отопления, водоснабжения, канализации и водостоков.\n"]
["ПК 1.2. Выполнять монтаж систем отопления, водоснабжения, канализации и водостоков."]
["ПК 1.3. Проводить и обрабатывать результаты испытаний систем отопления, водоснабжения, канализации и водостоков."]
["ПК 1.4.Устранять неисправности отопления, водоснабжения, канализации и водостоков при испытаниях."]
["Иметь практический опыт в","Уметь","Знать"]
["в приемке, транспортировке и хранении санитарно-технического оборудования;\n\n\n\n\n\n","Использовать сопроводительную документацию для проверки\nкомплектности и качества изготовления санитарно-технического оборудования;\n\n\n\n\n\n\n","Виды, назначения и принципы действия санитарно-технических систем и оборудования;\n\n\n\n\n\n\n\n"]
["в демонтаже санитарно-технических систем;","Читать чертежи при выполнении подготовительных работ по\nмонтажу санитарно-технических систем и оборудования;","Правила строповки, перемещения и складирования грузов\nсогласно маркировке;"]
["в выборе инструмента и приспособлений, необходимых для\nвыполнения монтажа санитарно-технических систем;","Применять правила такелажных работ;","Назначения и правила применения инструментов и\nприспособлений, необходимых при монтаже санитарно-технических систем и оборудования;"]
["в укрупнительной сборке отдельных узлов санитарно-технических систем;","Выполнять соединения санитарно-технических систем;","Требования охраны труда, пожарной и экологической\nбезопасности при выполнении подготовительных работ при\nмонтаже санитарно-технических систем и оборудования;"]
["в выполнении слесарных операций при монтаже систем\nотопления, водоснабжения, канализации и водостоков;","Производить демонтаж санитарно-технических систем и\nоборудования;","Монтажные чертежи внутренних санитарно-технических\nсистем и оборудования;"]
["в монтаже санитарно-технических систем и оборудования;\n","Выполнять работы по монтажу санитарно-технических систем\nи оборудования с соблюдением требований охраны труда,\nпожарной и экологической безопасности;","Назначение и правила использования контрольноизмерительного инструмента при монтаже санитарнотехнических систем и оборудования;"]
["в проведении испытаний и сдаче в эксплуатацию систем\nотопления, водоснабжения, канализации и водостоков;","Использовать проектную и нормативную техническую\nдокументацию в области монтажа систем отопления;","Требования охраны труда при монтаже санитарнотехнических систем и оборудования;"]
["в составлении актов выполненных работ по испытанию\nсистем отопления, водоснабжения, канализации и водостоков;","Читать монтажные чертежи систем отопления;","Требования, предъявляемые к качеству выполняемых работ\nпо монтажу систем отопления, водоснабжения, канализации и\nводостоков;"]
["в устранении обнаруженных дефектов на смонтированном\nсанитарно-техническом оборудовании.","Проводить испытания санитарно-технических систем и\nоборудования;","Нормативные технические документы и технологическую\nпоследовательность выполнения монтажных работ;"]
[null,"Использовать графические компьютерные программы и\nкомплексы при монтаже систем отопления;","Правила проведения испытаний инженерно- технических\nсистем гражданских зданий;"]
[null,"Использовать диагностические и измерительные инструменты\nи приборы для проведения испытаний санитарно-технических\nсистем и оборудования;","Правила оформления технической документации;"]
[null,"Применять технологическую документацию при проведении\nиспытаний санитарно-технических систем и оборудования;","Требования, предъявляемые к качеству выполняемых работ\nпри проведении испытаний санитарно-технических систем и\nоборудования;"]
[null,"Выполнять работы по проведению испытаний санитарнотехнических систем и оборудования с соблюдением\nтребований охраны труда, пожарной и экологической\nбезопасности;","Требования охраны труда при проведении испытаний\nинженерно- технических систем гражданских зданий;"]
[null,"Обрабатывать результаты испытаний систем отопления,\nводоснабжения, канализации и водостоков;","Правила устранения неисправностей санитарно-технических\nсистем отопления, водоснабжения, канализации и водостоков;"]
[null,"Выявлять отклонения анализируемых показателей при\nпроведении испытаний систем отопления, водоснабжения,\nканализации и водостоков;","Методики проведения анализа дефектов смонтированных\nсанитарно-технических систем и способы их устранения;"]
[null,"Оформлять техническую документацию по результатам\nиспытаний систем центрального отопления, водоснабжения,\nканализации и водостоков;","Виды несоответствий смонтированных санитарнотехнических систем и способы их устранения;\n"]
[null,"Устранять неисправности на смонтированном санитарнотехническом оборудовании, выявленных при испытаниях.","Требования охраны труда."]
[]
["ФГОС 08.02.07 МОНТАЖ И ЭКСПЛУАТАЦИЯ ВНУТРЕННИХ САНТЕХНИЧЕСКИХ УСТРОЙСТВ, КОНДИЦИОНИРОВАНИЯ ВОЗДУХА И ВЕНТИЛЯЦИИ"]
["3.4.1. Организация и контроль работ по монтажу систем водоснабжения и водоотведения, отопления, вентиляции и кондиционирования воздуха:"]
["ПК 1.1. Организовывать и выполнять подготовку систем и объектов к монтажу;"]
["ПК 1.2. Организовывать и выполнять монтаж систем водоснабжения и водоотведения, отопления, вентиляции и кондиционирования воздуха;"]
["ПК 1.3. Организовывать и выполнять производственный контроль качества монтажных работ;"]
["ПК 1.4. Выполнять пусконаладочные работы систем водоснабжения и водоотведения, отопления, вентиляции и кондиционирование воздуха;"]
["Иметь практический опыт в","Уметь","Знать"]
["организации и выполнении монтажа систем водоснабжения и водоотведения, отопления, вентиляции и кондиционирования воздуха;","использовать сопроводительную документацию для проверки комплектности и качества изготовления оборудования санитарно-технических систем, вентиляции и кондиционирования воздуха;","классификацию систем водоснабжения и водоотведения, отопления, вентиляции и кондиционирования воздуха;"]
["выполнении пусконаладочных работ систем водоснабжения и водоотведения, отопления, вентиляции и кондиционирования воздуха.","читать и разрабатывать монтажные чертежи систем водоснабжения и водоотведения, отопления, вентиляции и кондиционирования воздуха;","назначение и правила применения ручных инструментов и приспособлений, необходимых при монтаже систем водоснабжения и водоотведения, отопления, вентиляции и кондиционирования воздуха;"]
[null,"составлять ведомости выявленных дефектов (для поставщика оборудования) с целью их устранения;","состав комплекта технической документации и комплектность оборудования и материалов;"]
[null,"оформлять техническую документацию по результатам испытаний;","проектную и нормативную документацию в области монтажа и испытаний систем водоснабжения и водоотведения, отопления, вентиляции и кондиционирования воздуха;"]
[null,"проводить регулирование смонтированных сантехнических систем, вентиляции и кондиционирования воздуха для достижения проектных и паспортных характеристик;","технологию изготовления узлов и деталей трубопроводов и воздуховодов из различных материалов;"]
[null,"руководить работниками в рамках подразделения при выполнении работ по монтажу систем водоснабжения и водоотведения, отопления, вентиляции и кондиционирования воздуха;","технологию сборки монтажных узлов и требования к качеству их изготовления;"]
[null,"производить измерение производительности и давления вентилятора в характерных точках системы;","основы монтажного проектирования;"]
[null,"пользоваться контрольно-измерительными приборами.","правила по охране труда при подготовке оборудования, узлов и деталей к монтажу в соответствии с проектом производства работ;"]
[null,null,"правила по охране труда при монтаже систем вентиляции и кондиционирования воздуха;"]
[null,null,"технологию монтажных работ систем вентиляции;"]
[null,null,"проектную и нормативную документацию по монтажу систем кондиционирования;"]
[null,null,"способы соединения медных труб;"]
[null,null,"методы проведения измерений гидравлических и аэродинамических характеристик монтируемой системы;"]
[null,null,"принципы работы измерительных приборов и правила пуска и регулирования отдельных элементов и системы в целом;"]
[null,null,"принципы работы монтируемых систем и их элементов;"]
[null,null,"методику проведения регулирования смонтированных систем и отдельных элементов;"]
[null,null,"теплоизоляционный материал и способы работы с ним;"]
[null,null,"правила пайки твердым припоем;"]
[null,null,"особенности менеджмента в соответствующей области профессиональной деятельности."]
[]
["ЕТКС работ и профессий рабочих. Выпуск 3. § 201. Монтажник санитарно-технических систем и оборудования 3-го разряда"]
["Характеристика работ.","Выполнение простых работ при монтаже и ремонте систем центрального отопления, водоснабжения, канализации, газоснабжения и водостоков."]
[null,"Свертывание и сборка простых узлов."]
[null,"Сборка фланцевых соединений."]
[null,"Разборка отдельных узлов трубопроводов (при монтаже)."]
[null,"Установка и заделка креплений под приборы и трубопроводы."]
[null,"Сверление или пробивка отверстий в конструкциях."]
[null,"Заделка раструбов чугунных трубопроводов."]
[null,"Нарезка резьбы на трубах вручную."]
[null,"Комплектование труб и фасонных частей стояков."]
[null,"Установка ручного пресса для опрессовки систем."]
[null,"Отсоединение чугунных котлов от трубопроводов."]
[null,"Обрубка кромок швов жаротрубного котла для последующей подварки."]
[null,"Очистка секций чугунного котла снаружи и изнутри с промывкой."]
[null,"Срубка заклепок жаротрубного котла с выбиванием их."]
[null,"Смена манжет у унитаза."]
[null,"Зачистка сварных швов шлифмашинкой."]
[null,"Прокачка канализационных стояков и отводов."]
[null,"Смена прокладок кранов, вентилей."]
["Должен знать:","виды основных деталей санитарно-технических систем, соединений труб и креплений трубопроводов; "]
[null,"назначение, устройство и особенности монтажа внутренних систем центрального отопления, водоснабжения, канализации, газоснабжения и водостоков;"]
[null,"способы сверления и пробивки отверстий;"]
[null,"правила транспортировки баллонов с кислородом и ацетиленом;"]
[null,"правила техники безопасности при транспортировке баллонов;"]
[null,"правила пользования механизированным инструментом."]
[]
["ЕТКС работ и профессий рабочих. Выпуск 2. Часть 2. § 161. Слесарь-сантехник 3-го разряда"]
["Характеристика работ.","Разборка, ремонт и сборка различных деталей и узлов санитарно-технических систем центрального отопления, водоснабжения, канализации и водостоков."]
[null,"Сверление или пробивка отверстий в конструкциях."]
[null,"Нарезка резьб на трубах вручную."]
[null,"Установка и заделка креплений под трубопроводы и приборы."]
[null,"Комплектование труб и фасонных частей стояков."]
["Должен знать:","принцип действия, назначение и особенности ремонта санитарно-технических трубопроводных систем центрального отопления, водоснабжения, канализации и водостоков;"]
[null,"виды основных деталей санитарно-технических систем, соединений труб и креплений трубопроводов;"]
[null,"способы сверления и пробивки отверстий;"]
[null,"правила обращения и транспортирования баллонов с кислородом и ацетиленом;"]
[null,"назначение и правила пользования механизированным инструментом."]

{"sheet":"ПС 16.086 B 05.3","index":9,"n_rows":142,"n_cols":3,"rows_kept":142,"merged":[[0,0,0,2],[32,0,32,2],[33,0,33,2],[34,0,34,2],[35,0,35,2],[53,0,53,2],[54,0,54,2],[55,0,55,2],[56,0,56,2],[57,0,57,2],[58,0,58,2],[78,0,78,2],[79,0,79,2],[80,0,80,2],[81,0,81,2],[82,0,82,2],[83,0,83,2],[105,0,105,2],[106,0,123,0],[106,1,106,2],[107,1,107,2],[108,1,108,2],[109,1,109,2],[110,1,110,2],[111,1,111,2],[112,1,112,2],[113,1,113,2],[114,1,114,2],[115,1,115,2],[116,1,116,2],[117,1,117,2],[118,1,118,2],[119,1,119,2],[120,1,120,2],[121,1,121,2],[122,1,122,2],[123,1,123,2],[124,0,129,0],[124,1,124,2],[125,1,125,2],[126,1,126,2],[127,1,127,2],[128,1,128,2],[129,1,129,2],[131,0,131,2],[132,0,136,0],[132,1,132,2],[133,1,133,2],[134,1,134,2],[135,1,135,2],[136,1,136,2],[137,0,141,0],[137,1,137,2],[138,1,138,2],[139,1,139,2],[140,1,140,2],[141,1,141,2]]}
["Профстандарт 16.086 B/05.3"]
["Трудовые действия","Умения","Знания"]
["Выбор и проверка средств индивидуальной защиты в соответствии с требованиями охраны труда","Оценивать состояние основного и вспомогательного оборудования системы водоснабжения, в том числе поливочной системы и системы противопожарного водопровода","Требования охраны труда при проведении работ по подготовке домовых санитарно-технических систем и оборудования к сезонной эксплуатации"]
["Подбор и проверка материалов и инструментов в соответствии с полученным заданием","Выполнять крепление трубопроводов, приборов и оборудования","Виды, назначение, устройство, принцип работы домовых санитарно-технических систем и оборудования"]
["Выполнение консервации и расконсервации поливочной системы","Выполнять смену прокладок, набивку сальников","Виды, назначение и правила применения ручного и механизированного инструмента"]
["Выполнение ревизии запорно-регулирующей, водоразборной арматуры и внутренних пожарных кранов","Выполнять замену отдельных участков трубопроводов","Виды, назначение, устройство, принцип работы циркуляционных, повысительных и пожарных насосов"]
["Сборка фланцевых соединений","Выполнять замену фасонных частей, трапов, гидрозатворов (сифонов), ревизий","Виды, назначение, устройство, принцип работы запорно-регулирующей и водоразборной арматуры"]
["Промывка централизованных систем теплоснабжения для удаления накипно-коррозионных отложений","Выполнять перекладку канализационного выпуска","Виды, назначение, устройство, принцип работы систем отопления и водоснабжения"]
["Проведение вспомогательных работ при гидравлических и тепловых испытаниях оборудования индивидуальных тепловых пунктов и водоподкачек, узлов ввода и систем отопления","Промывать водонапорные баки, участки водопровода и системы водоснабжения в целом","Виды, назначение, устройство, принцип работы контрольно-измерительных приборов"]
["Выполнение вспомогательных работ при проведении пробных пусконаладочных работ (пробных топок)","Выполнять ремонт и замену отдельных санитарно-технических приборов","Виды, назначение, устройство, принцип работы отопительных приборов"]
["Удаление воздуха из системы отопления","Пользоваться средствами связи","Способы разметки мест установки креплений и приборов"]
["Проведение простых вспомогательных работ по очистке теплообменного оборудования для удаления накипно-коррозионных отложений",null,"Виды шаблонов для разметки отверстий при установке приборов и правила пользования ими"]
["Выполнение вспомогательных работ в ходе регулировки и технического обслуживания насосов, запорной арматуры, расширительных баков и элементов, скрытых от постоянного наблюдения (разводящих трубопроводов и оборудования на чердаках, в подвалах и каналах)",null,"Устройство и принцип действия электродвигателей, трансформаторов, сварочного оборудования"]
["Свертывание и сборка простых узлов",null,"Свойства металлов и сплавов, неметаллических материалов"]
["Установка и заделка креплений под приборы и трубопроводы",null,"Технология и техника подготовки домовых санитарно-технических систем и оборудования к сезонной эксплуатации"]
["Сверление и пробивка отверстий в конструкциях",null,"Технология и техника проведения работ по ремонту систем отопления и горячего водоснабжения"]
["Заделка раструбов чугунных трубопроводов"]
["Нарезка резьбы на трубах вручную"]
["Смена манжет у унитаза"]
["Смена прокладок кранов, вентилей"]
["Присоединение подводок к трубам с помощью фланцев (заглушек)"]
["Выполнение вспомогательных работ при подсоединении к трубопроводам отопительных приборов"]
["Соединение полимерных труб"]
["Сборка стальных труб на фланцах и с помощью накидной гайки"]
["Ремонт и замена неисправных гидрозатворов (сифонов)"]
["Мелкий ремонт и замена неисправных частей санитарно-технических приборов"]
["Ремонт и утепление наружных водоразборных кранов и колонок"]
["Утепление трубопроводов в чердачных и подвальных помещениях"]
["Консервация (расконсервация) и ремонт поливочной системы"]
["Укрепление водосточных труб, колен и воронок"]
["Информирование работника более высокого уровня квалификации при выявлении неисправностей, обнаружении дефектов или низкого качества материалов, а также работ, выполненных с отклонением от проекта или технических условий"]
[]
["ФГОС  08.01.29 Мастер по ремонту и обслуживанию инженерных систем жилищно-коммунального хозяйства"]
["3.4.1. Выполнение работ по ремонту, монтажу и эксплуатации систем водоснабжения, водоотведения и отопления систем жилищно-коммунального хозяйства:"]
["ПК 1.1. Выполнять ремонт и монтаж систем водоснабжения, водоотведения и отопления. "]
["ПК 1.2. Выполнять эксплуатацию системы водоснабжения, водоотведения и отопления."]
["Иметь практический опыт в","Уметь","Знать"]
["подготовки объекта к ремонту и монтажу систем водоснабжения, водоотведения и отопления в соответствии с проектом производства работ, стандартами рабочего места и охраны труда;\n\n\n\n\n","оценивать состояние рабочего места на соответствие требованиям охраны труда;\n\n\n\n\n\n\n\n\n\n","требования по охране труда при проведении работ по ремонту и монтажу систем водоснабжения, водоотведения и отопления объектов жилищно-коммунального хозяйства; \n\n\n\n\n\n\n\n\n"]
["выполнения подготовительных работ при монтаже и ремонте систем водоснабжения, водоотведения и отопления;","определять исправность средств индивидуальной защиты;\n","виды и основные правила построения чертежей, эскизов и схем систем водоснабжения, водоотведения и отопления объектов жилищно коммунального хозяйства; "]
["подготовки основных и вспомогательных материалов для ремонта и монтажа систем водоснабжения, водоотведения и отопления; ","читать и выполнять чертежи, эскизы и схемы систем водоснабжения, водоотведения и отопления объектов жилищно-коммунального хозяйства; ","проектной технической документации для выполнения монтажных работ системы водоснабжения, водоотведения, отопления;"]
["проведения работ по ремонту и монтажу оборудования систем \nводоснабжения, водоотведения и отопления зданий и сооружений жилищно-коммунального хозяйства;","подбирать материалы, инструменты и оборудование для монтажа и ремонта;","виды, назначения, устройства и принципов работы систем \nводоснабжения, водоотведения и отопления;"]
["\nпроведения работ по эксплуатации оборудования систем \nводоснабжения, водоотведения и отопления зданий и сооружений жилищно-коммунального хозяйства;","проводить техническое обслуживание оборудования систем \nводоснабжения, водоотведения и отопления объектов жилищно коммунального хозяйства; ","сущность, технологии и содержание монтажа и ремонта оборудования систем водоснабжения, водоотведения и отопления; "]
["совершении действий в критических ситуациях при эксплуатации оборудования систем водоснабжения, водоотведения и отопления жилищно-коммунального хозяйства","осуществлять монтаж и ремонт систем водоснабжения, водоотведения и отопления санитарно-технического оборудования с использованием ручного и механизированного инструмента, приспособлений и материалов; ","приемы и методы минимизации издержек на объектах жилищно коммунального хозяйства; "]
[null,"проводить испытания отремонтированных систем и оборудования жилищно-коммунального хозяйства;","основы «бережливого производства», повышающих качество и \nпроизводительность труда на объектах жилищно-коммунального хозяйства; "]
[null,"проводить плановый осмотр оборудования систем водоснабжения, водоотведения и отопления жилищно-коммунального хозяйства; ","компьютерные системы управления обслуживанием и ремонтом; "]
[null,"заполнять техническую документацию по результатам осмотра; \nвыполнять профилактические работы, способствующие эффективной работе санитарно-технических систем; ","методы и приемы расчета необходимых материалов и оборудования при ремонте и монтаже отдельных узлов систем водоснабжения, водоотведения и отопления; "]
[null,"выполнять гидравлическое испытание системы отопления, \nводоснабжения, в том числе поливочной системы и системы \nпротивопожарного водопровода; ","виды ремонта оборудования: текущий, капитальный (объем, \nпериодичность, продолжительность, трудоемкость, количество);"]
[null,"подготавливать внутридомовые системы водоснабжения, отопления в том числе поливочной системы и системы противопожарного водопровода к сезонной эксплуатации; выполнять консервацию внутридомовых систем; ","сущность и содержание технического обслуживания оборудования систем водоснабжения, водоотведения и отопления; "]
[null,"определять причины и устранять неисправности оборудования систем водоснабжения, водоотведения и отопления жилищно-коммунального хозяйства;","виды технического обслуживания: текущее (внутрисменное) \nобслуживание, профилактические осмотры, периодические осмотры, надзор; "]
[null,"проводить испытания отремонтированных систем и оборудования жилищно-коммунального хозяйства; ","правила заполнения технической документации; \nосновные понятия систем автоматического управления и \nрегулирования; "]
[null,"использовать необходимые инструменты, приспособления и материалы при выполнении ремонтных работ","устройство и правила эксплуатации применяемых инструментов, приспособлений; "]
[null,null,"порядок сдачи после ремонта и испытаний оборудования систем водоснабжения, водоотведения и отопления объектов жилищно коммунального хозяйства; "]
[]
["08.02.13 Монтаж и эксплуатация внутренних сантехнических устройств, кондиционирования воздуха и вентиляции"]
["3.4.1. Поддержание рабочего состояния оборудования систем водоснабжения, водоотведения, отопления объектов жилищно-коммунального хозяйства:\n"]
["ПК 1.1. Выполнять подготовительные работы при монтажесистем отопления, водоснабжения, канализации и водостоков.\n"]
["ПК 1.2. Выполнять монтаж систем отопления, водоснабжения, канализации и водостоков."]
["ПК 1.3. Проводить и обрабатывать результаты испытаний систем отопления, водоснабжения, канализации и водостоков."]
["ПК 1.4.Устранять неисправности отопления, водоснабжения, канализации и водостоков при испытаниях."]
["Иметь практический опыт в","Уметь","Знать"]
["в приемке, транспортировке и хранении санитарно-технического оборудования;\n\n\n\n\n\n","Использовать сопроводительную документацию для проверки\nкомплектности и качества изготовления санитарно-технического оборудования;\n\n\n\n\n\n\n","Виды, назначения и принципы действия санитарно-технических систем и оборудования;\n\n\n\n\n\n\n\n"]
["в демонтаже санитарно-технических систем;","Читать чертежи при выполнении подготовительных работ по\nмонтажу санитарно-технических систем и оборудования;","Правила строповки, перемещения и складирования грузов\nсогласно маркировке;"]
["в выборе инструмента и приспособлений, необходимых для\nвыполнения монтажа санитарно-технических систем;","Применять правила такелажных работ;","Назначения и правила применения инструментов и\nприспособлений, необходимых при монтаже санитарно-технических систем и оборудования;"]
["в укрупнительной сборке отдельных узлов санитарно-технических систем;","Выполнять соединения санитарно-технических систем;","Требования охраны труда, пожарной и экологической\nбезопасности при выполнении подготовительных работ при\nмонтаже санитарно-технических систем и оборудования;"]
["в выполнении слесарных операций при монтаже систем\nотопления, водоснабжения, канализации и водостоков;","Производить демонтаж санитарно-технических систем и\nоборудования;","Монтажные чертежи внутренних санитарно-технических\nсистем и оборудования;"]
["в монтаже санитарно-технических систем и оборудования;\n","Выполнять работы по монтажу санитарно-технических систем\nи оборудования с соблюдением требований охраны труда,\nпожарной и экологической безопасности;","Назначение и правила использования контрольноизмерительного инструмента при монтаже санитарнотехнических систем и оборудования;"]
["в проведении испытаний и сдаче в эксплуатацию систем\nотопления, водоснабжения, канализации и водостоков;","Использовать проектную и нормативную техническую\nдокументацию в области монтажа систем отопления;","Требования охраны труда при монтаже санитарнотехнических систем и оборудования;"]
["в составлении актов выполненных работ по испытанию\nсистем отопления, водоснабжения, канализации и водостоков;","Читать монтажные чертежи систем отопления;","Требования, предъявляемые к качеству выполняемых работ\nпо монтажу систем отопления, водоснабжения, канализации и\nводостоков;"]
["в устранении обнаруженных дефектов на смонтированном\nсанитарно-техническом оборудовании.","Проводить испытания санитарно-технических систем и\nоборудования;","Нормативные технические документы и технологическую\nпоследовательность выполнения монтажных работ;"]
[null,"Использовать графические компьютерные программы и\nкомплексы при монтаже систем отопления;","Правила проведения испытаний инженерно- технических\nсистем гражданских зданий;"]
[null,"Использовать диагностические и измерительные инструменты\nи приборы для проведения испытаний санитарно-технических\nсистем и оборудования;","Правила оформления технической документации;"]
[null,"Применять технологическую документацию при проведении\nиспытаний санитарно-технических систем и оборудования;","Требования, предъявляемые к качеству выполняемых работ\nпри проведении испытаний санитарно-технических систем и\nоборудования;"]
[null,"Выполнять работы по проведению испытаний санитарнотехнических систем и оборудования с соблюдением\nтребований охраны труда, пожарной и экологической\nбезопасности;","Требования охраны труда при проведении испытаний\nинженерно- технических систем гражданских зданий;"]
[null,"Обрабатывать результаты испытаний систем отопления,\nводоснабжения, канализации и водостоков;","Правила устранения неисправностей санитарно-технических\nсистем отопления, водоснабжения, канализации и водостоков;"]
[null,"Выявлять отклонения анализируемых показателей при\nпроведении испытаний систем отопления, водоснабжения,\nканализации и водостоков;","Методики проведения анализа дефектов смонтированных\nсанитарно-технических систем и способы их устранения;"]
[null,"Оформлять техническую документацию по результатам\nиспытаний систем центрального отопления, водоснабжения,\nканализации и водостоков;","Виды несоответствий смонтированных санитарнотехнических систем и способы их устранения;\n"]
[null,"Устранять неисправности на смонтированном санитарнотехническом оборудовании, выявленных при испытаниях.","Требования охраны труда."]
[]
["ФГОС 08.02.07 МОНТАЖ И ЭКСПЛУАТАЦИЯ ВНУТРЕННИХ САНТЕХНИЧЕСКИХ УСТРОЙСТВ, КОНДИЦИОНИРОВАНИЯ ВОЗДУХА И ВЕНТИЛЯЦИИ"]
["3.4.1. Организация и контроль работ по монтажу систем водоснабжения и водоотведения, отопления, вентиляции и кондиционирования воздуха:"]
["ПК 1.1. Организовывать и выполнять подготовку систем и объектов к монтажу;"]
["ПК 1.2. Организовывать и выполнять монтаж систем водоснабжения и водоотведения, отопления, вентиляции и кондиционирования воздуха;"]
["ПК 1.3. Организовывать и выполнять производственный контроль качества монтажных работ;"]
["ПК 1.4. Выполнять пусконаладочные работы систем водоснабжения и водоотведения, отопления, вентиляции и кондиционирование воздуха;"]
["Иметь практический опыт в","Уметь","Знать"]
["организации и выполнении монтажа систем водоснабжения и водоотведения, отопления, вентиляции и кондиционирования воздуха;","использовать сопроводительную документацию для проверки комплектности и качества изготовления оборудования санитарно-технических систем, вентиляции и кондиционирования воздуха;","классификацию систем водоснабжения и водоотведения, отопления, вентиляции и кондиционирования воздуха;"]
["выполнении пусконаладочных работ систем водоснабжения и водоотведения, отопления, вентиляции и кондиционирования воздуха.","читать и разрабатывать монтажные чертежи систем водоснабжения и водоотведения, отопления, вентиляции и кондиционирования воздуха;","назначение и правила применения ручных инструментов и приспособлений, необходимых при монтаже систем водоснабжения и водоотведения, отопления, вентиляции и кондиционирования воздуха;"]
[null,"составлять ведомости выявленных дефектов (для поставщика оборудования) с целью их устранения;","состав комплекта технической документации и комплектность оборудования и материалов;"]
[null,"оформлять техническую документацию по результатам испытаний;","проектную и нормативную документацию в области монтажа и испытаний систем водоснабжения и водоотведения, отопления, вентиляции и кондиционирования воздуха;"]
[null,"проводить регулирование смонтированных сантехнических систем, вентиляции и кондиционирования воздуха для достижения проектных и паспортных характеристик;","технологию изготовления узлов и деталей трубопроводов и воздуховодов из различных материалов;"]
[null,"руководить работниками в рамках подразделения при выполнении работ по монтажу систем водоснабжения и водоотведения, отопления, вентиляции и кондиционирования воздуха;","технологию сборки монтажных узлов и требования к качеству их изготовления;"]
[null,"производить измерение производительности и давления вентилятора в характерных точках системы;","основы монтажного проектирования;"]
[null,"пользоваться контрольно-измерительными приборами.","правила по охране труда при подготовке оборудования, узлов и деталей к монтажу в соответствии с проектом производства работ;"]
[null,null,"правила по охране труда при монтаже систем вентиляции и кондиционирования воздуха;"]
[null,null,"технологию монтажных работ систем вентиляции;"]
[null,null,"проектную и нормативную документацию по монтажу систем кондиционирования;"]
[null,null,"способы соединения медных труб;"]
[null,null,"методы проведения измерений гидравлических и аэродинамических характеристик монтируемой системы;"]
[null,null,"принципы работы измерительных приборов и правила пуска и регулирования отдельных элементов и системы в целом;"]
[null,null,"принципы работы монтируемых систем и их элементов;"]
[null,null,"методику проведения регулирования смонтированных систем и отдельных элементов;"]
[null,null,"теплоизоляционный материал и способы работы с ним;"]
[null,null,"правила пайки твердым припоем;"]
[null,null,"особенности менеджмента в соответствующей области профессиональной деятельности."]
[]
["ЕТКС работ и профессий рабочих. Выпуск 3. § 201. Монтажник санитарно-технических систем и оборудования 3-го разряда"]
["Характеристика работ.","Выполнение простых работ при монтаже и ремонте систем центрального отопления, водоснабжения, канализации, газоснабжения и водостоков."]
[null,"Свертывание и сборка простых узлов."]
[null,"Сборка фланцевых соединений."]
[null,"Разборка отдельных узлов трубопроводов (при монтаже)."]
[null,"Установка и заделка креплений под приборы и трубопроводы."]
[null,"Сверление или пробивка отверстий в конструкциях."]
[null,"Заделка раструбов чугунных трубопроводов."]
[null,"Нарезка резьбы на трубах вручную."]
[null,"Комплектование труб и фасонных частей стояков."]
[null,"Установка ручного пресса для опрессовки систем."]
[null,"Отсоединение чугунных котлов от трубопроводов."]
[null,"Обрубка кромок швов жаротрубного котла для последующей подварки."]
[null,"Очистка секций чугунного котла снаружи и изнутри с промывкой."]
[null,"Срубка заклепок жаротрубного котла с выбиванием их."]
[null,"Смена манжет у унитаза."]
[null,"Зачистка сварных швов шлифмашинкой."]
[null,"Прокачка канализационных стояков и отводов."]
[null,"Смена прокладок кранов, вентилей."]
["Должен знать:","виды основных деталей санитарно-технических систем, соединений труб и креплений трубопроводов; "]
[null,"назначение, устройство и особенности монтажа внутренних систем центрального отопления, водоснабжения, канализации, газоснабжения и водостоков;"]
[null,"способы сверления и пробивки отверстий;"]
[null,"правила транспортировки баллонов с кислородом и ацетиленом;"]
[null,"правила техники безопасности при транспортировке баллонов;"]
[null,"правила пользования механизированным инструментом."]
[]
["ЕТКС работ и профессий рабочих. Выпуск 2. Часть 2. § 161. Слесарь-сантехник 3-го разряда"]
["Характеристика работ.","Разборка, ремонт и сборка различных деталей и узлов санитарно-технических систем центрального отопления, водоснабжения, канализации и водостоков."]
[null,"Сверление или пробивка отверстий в конструкциях."]
[null,"Нарезка резьб на трубах вручную."]
[null,"Установка и заделка креплений под трубопроводы и приборы."]
[null,"Комплектование труб и фасонных частей стояков."]
["Должен знать:","принцип действия, назначение и особенности ремонта санитарно-технических трубопроводных систем центрального отопления, водоснабжения, канализации и водостоков;"]
[null,"виды основных деталей санитарно-технических систем, соединений труб и креплений трубопроводов;"]
[null,"способы сверления и пробивки отверстий;"]
[null,"правила обращения и транспортирования баллонов с кислородом и ацетиленом;"]
[null,"назначение и правила пользования механизированным инструментом."]

{"sheet":"ПС16.089 B 01.3","index":10,"n_rows":138,"n_cols":3,"rows_kept":138,"merged":[[0,0,0,2],[28,0,28,2],[29,0,29,2],[30,0,30,2],[31,0,31,2],[49,0,49,2],[50,0,50,2],[51,0,51,2],[52,0,52,2],[53,0,53,2],[54,0,54,2],[74,0,74,2],[75,0,75,2],[76,0,76,2],[77,0,77,2],[78,0,78,2],[79,0,79,2],[101,0,101,2],[102,0,119,0],[102,1,102,2],[103,1,103,2],[104,1,104,2],[105,1,105,2],[106,1,106,2],[107,1,107,2],[108,1,108,2],[109,1,109,2],[110,1,110,2],[111,1,111,2],[112,1,112,2],[113,1,113,2],[114,1,114,2],[115,1,115,2],[116,1,116,2],[117,1,117,2],[118,1,118,2],[119,1,119,2],[120,0,125,0],[120,1,120,2],[121,1,121,2],[122,1,122,2],[123,1,123,2],[124,1,124,2],[125,1,125,2],[127,0,127,2],[128,0,132,0],[128,1,128,2],[129,1,129,2],[130,1,130,2],[131,1,131,2],[132,1,132,2],[133,0,137,0],[133,1,133,2],[134,1,134,2],[135,1,135,2],[136,1,136,2],[137,1,137,2],[138,0,138,2],[139,0,139,2],[140,0,140,2],[141,0,141,2],[142,0,142,2]]}
["Профстандарт 16.089 B/01.3"]
["Трудовые действия","Умения","Знания"]
["Монтаж емкостных и секционных водоподогревателей (бойлеров)","Использовать проектную и нормативную техническую документацию в области монтажа систем отопления","Назначение каждого вида оборудования, основных деталей и узлов системы отопления"]
["Монтаж воздухонагревателей, воздушно-отопительных агрегатов","Читать монтажные чертежи систем отопления","Системы разводок от стояков"]
["Монтаж насосов и насосных агрегатов","Разбирать, ремонтировать и собирать средней сложности детали и узлы систем отопления и тепловых пунктов","Технология работ по монтажу систем отопления"]
["Установка грязевиков и водяных фильтров","Размечать места установки приборов и крепления систем отопления","Устройство и способы монтажа и ремонта трубопроводных систем из стальных, медных, латунных, полимерных, металлополимерных, нержавеющих и оцинкованных труб"]
["Установка узлов учета тепловой энергии и теплоносителя","Группировать и догруппировывать секционные радиаторы на месте монтажа и ремонта","Правила установки санитарных и отопительных приборов"]
["Монтаж трубопроводов и запорно-регулирующей арматуры диаметром до 400 мм","Соединять трубопроводы систем отопления","Способы разметки мест установки приборов и крепления"]
["Разметка мест установки отопительных приборов, насосов, прохода трубопроводов, смесительных установок систем водяного отопления, средств креплений","Крепить детали и приборы систем отопления при помощи монтажных пистолетов","Виды шаблонов для разметки отверстий при установке приборов и правила пользования ими"]
["Крепление кронштейнов, радиаторных планок","Выявлять дефектные места при испытании трубопроводов","Устройство монтажных поршневых пистолетов и правила работы с ними"]
["Монтаж отопительных приборов (радиаторов, конвекторов)","Использовать ручной, механизированный и измерительный инструмент для монтажа систем отопления","Способы выявления дефектных мест при испытании трубопроводов"]
["Монтаж солнечных коллекторов","Использовать графические компьютерные программы и комплексы при монтаже систем отопления","Назначение и правила применения ручных и механизированных инструментов и приспособлений, необходимых при монтаже систем отопления"]
["Прокладка стояков отопления и подводок","Подбирать инструмент согласно технологическому процессу монтажа систем отопления","Правила применения средств индивидуальной защиты при монтаже систем отопления"]
["Присоединение подводок к трубам с помощью фланцев (заглушек)","Выполнять работы по монтажу систем отопления с соблюдением требований охраны труда, пожарной и экологической безопасности","Требования, предъявляемые к качеству выполняемых работ"]
["Подсоединение к трубопроводам отопительных приборов",null,"Основы и правила программирования электронных блоков управления систем отопления (типа \"умный дом\")"]
["Установка закрытых расширительных баков",null,"Правила рациональной организации труда на рабочем месте"]
["Установка и покрытие тепловой изоляцией открытых расширительных баков",null,"Санитарные нормы и правила проведения работ по монтажу систем отопления"]
["Установка воздухосборников",null,"Правила технической эксплуатации тепловых энергоустановок"]
["Установка контрольно-измерительных приборов и предохранительных устройств",null,"Способы и технологии гибки труб"]
["Монтаж смесительных установок систем водяного отопления",null,"Назначение и правила использования контрольно-измерительного инструмента при монтаже систем отопления"]
["Присоединение смесительных установок систем водяного отопления к тепловой сети и разводящей магистрали",null,"Основные принципы гидравлики; основные химические свойства воды"]
["Крепление деталей и приборов с помощью монтажных поршневых пистолетов",null,"Виды контрольно-измерительных приборов и средств, применяемых при монтаже систем отопления"]
["Гибка элементов трубопроводов по заданным размерам",null,"Виды первой помощи и принципы ее оказания"]
["Замена отдельных секций и отопительных приборов",null,"Виды и предназначение общестроительных работ"]
["Монтаж и укладка системы теплого пола",null,"Нормативные технические документы по монтажу систем отопления"]
["Балансировка системы отопления",null,"Требования охраны труда при эксплуатации теплопотребляющих установок и тепловых сетей потребителей"]
["Проверка и сдача в эксплуатацию санитарно-технического, насосного и котельного оборудования"]
[]
["ФГОС  08.01.29 Мастер по ремонту и обслуживанию инженерных систем жилищно-коммунального хозяйства"]
["3.4.1. Выполнение работ по ремонту, монтажу и эксплуатации систем водоснабжения, водоотведения и отопления систем жилищно-коммунального хозяйства:"]
["ПК 1.1. Выполнять ремонт и монтаж систем водоснабжения, водоотведения и отопления. "]
["ПК 1.2. Выполнять эксплуатацию системы водоснабжения, водоотведения и отопления."]
["Иметь практический опыт в","Уметь","Знать"]
["подготовки объекта к ремонту и монтажу систем водоснабжения, водоотведения и отопления в соответствии с проектом производства работ, стандартами рабочего места и охраны труда;\n\n\n\n\n","оценивать состояние рабочего места на соответствие требованиям охраны труда;\n\n\n\n\n\n\n\n\n\n","требования по охране труда при проведении работ по ремонту и монтажу систем водоснабжения, водоотведения и отопления объектов жилищно-коммунального хозяйства; \n\n\n\n\n\n\n\n\n"]
["выполнения подготовительных работ при монтаже и ремонте систем водоснабжения, водоотведения и отопления;","определять исправность средств индивидуальной защиты;\n","виды и основные правила построения чертежей, эскизов и схем систем водоснабжения, водоотведения и отопления объектов жилищно коммунального хозяйства; "]
["подготовки основных и вспомогательных материалов для ремонта и монтажа систем водоснабжения, водоотведения и отопления; ","читать и выполнять чертежи, эскизы и схемы систем водоснабжения, водоотведения и отопления объектов жилищно-коммунального хозяйства; ","проектной технической документации для выполнения монтажных работ системы водоснабжения, водоотведения, отопления;"]
["проведения работ по ремонту и монтажу оборудования систем \nводоснабжения, водоотведения и отопления зданий и сооружений жилищно-коммунального хозяйства;","подбирать материалы, инструменты и оборудование для монтажа и ремонта;","виды, назначения, устройства и принципов работы систем \nводоснабжения, водоотведения и отопления;"]
["\nпроведения работ по эксплуатации оборудования систем \nводоснабжения, водоотведения и отопления зданий и сооружений жилищно-коммунального хозяйства;","проводить техническое обслуживание оборудования систем \nводоснабжения, водоотведения и отопления объектов жилищно коммунального хозяйства; ","сущность, технологии и содержание монтажа и ремонта оборудования систем водоснабжения, водоотведения и отопления; "]
["совершении действий в критических ситуациях при эксплуатации оборудования систем водоснабжения, водоотведения и отопления жилищно-коммунального хозяйства","осуществлять монтаж и ремонт систем водоснабжения, водоотведения и отопления санитарно-технического оборудования с использованием ручного и механизированного инструмента, приспособлений и материалов; ","приемы и методы минимизации издержек на объектах жилищно коммунального хозяйства; "]
[null,"проводить испытания отремонтированных систем и оборудования жилищно-коммунального хозяйства;","основы «бережливого производства», повышающих качество и \nпроизводительность труда на объектах жилищно-коммунального хозяйства; "]
[null,"проводить плановый осмотр оборудования систем водоснабжения, водоотведения и отопления жилищно-коммунального хозяйства; ","компьютерные системы управления обслуживанием и ремонтом; "]
[null,"заполнять техническую документацию по результатам осмотра; \nвыполнять профилактические работы, способствующие эффективной работе санитарно-технических систем; ","методы и приемы расчета необходимых материалов и оборудования при ремонте и монтаже отдельных узлов систем водоснабжения, водоотведения и отопления; "]
[null,"выполнять гидравлическое испытание системы отопления, \nводоснабжения, в том числе поливочной системы и системы \nпротивопожарного водопровода; ","виды ремонта оборудования: текущий, капитальный (объем, \nпериодичность, продолжительность, трудоемкость, количество);"]
[null,"подготавливать внутридомовые системы водоснабжения, отопления в том числе поливочной системы и системы противопожарного водопровода к сезонной эксплуатации; выполнять консервацию внутридомовых систем; ","сущность и содержание технического обслуживания оборудования систем водоснабжения, водоотведения и отопления; "]
[null,"определять причины и устранять неисправности оборудования систем водоснабжения, водоотведения и отопления жилищно-коммунального хозяйства;","виды технического обслуживания: текущее (внутрисменное) \nобслуживание, профилактические осмотры, периодические осмотры, надзор; "]
[null,"проводить испытания отремонтированных систем и оборудования жилищно-коммунального хозяйства; ","правила заполнения технической документации; \nосновные понятия систем автоматического управления и \nрегулирования; "]
[null,"использовать необходимые инструменты, приспособления и материалы при выполнении ремонтных работ","устройство и правила эксплуатации применяемых инструментов, приспособлений; "]
[null,null,"порядок сдачи после ремонта и испытаний оборудования систем водоснабжения, водоотведения и отопления объектов жилищно коммунального хозяйства; "]
[]
["08.02.13 Монтаж и эксплуатация внутренних сантехнических устройств, кондиционирования воздуха и вентиляции"]
["3.4.1. Поддержание рабочего состояния оборудования систем водоснабжения, водоотведения, отопления объектов жилищно-коммунального хозяйства:\n"]
["ПК 1.1. Выполнять подготовительные работы при монтажесистем отопления, водоснабжения, канализации и водостоков.\n"]
["ПК 1.2. Выполнять монтаж систем отопления, водоснабжения, канализации и водостоков."]
["ПК 1.3. Проводить и обрабатывать результаты испытаний систем отопления, водоснабжения, канализации и водостоков."]
["ПК 1.4.Устранять неисправности отопления, водоснабжения, канализации и водостоков при испытаниях."]
["Иметь практический опыт в","Уметь","Знать"]
["в приемке, транспортировке и хранении санитарно-технического оборудования;\n\n\n\n\n\n","Использовать сопроводительную документацию для проверки\nкомплектности и качества изготовления санитарно-технического оборудования;\n\n\n\n\n\n\n","Виды, назначения и принципы действия санитарно-технических систем и оборудования;\n\n\n\n\n\n\n\n"]
["в демонтаже санитарно-технических систем;","Читать чертежи при выполнении подготовительных работ по\nмонтажу санитарно-технических систем и оборудования;","Правила строповки, перемещения и складирования грузов\nсогласно маркировке;"]
["в выборе инструмента и приспособлений, необходимых для\nвыполнения монтажа санитарно-технических систем;","Применять правила такелажных работ;","Назначения и правила применения инструментов и\nприспособлений, необходимых при монтаже санитарно-технических систем и оборудования;"]
["в укрупнительной сборке отдельных узлов санитарно-технических систем;","Выполнять соединения санитарно-технических систем;","Требования охраны труда, пожарной и экологической\nбезопасности при выполнении подготовительных работ при\nмонтаже санитарно-технических систем и оборудования;"]
["в выполнении слесарных операций при монтаже систем\nотопления, водоснабжения, канализации и водостоков;","Производить демонтаж санитарно-технических систем и\nоборудования;","Монтажные чертежи внутренних санитарно-технических\nсистем и оборудования;"]
["в монтаже санитарно-технических систем и оборудования;\n","Выполнять работы по монтажу санитарно-технических систем\nи оборудования с соблюдением требований охраны труда,\nпожарной и экологической безопасности;","Назначение и правила использования контрольноизмерительного инструмента при монтаже санитарнотехнических систем и оборудования;"]
["в проведении испытаний и сдаче в эксплуатацию систем\nотопления, водоснабжения, канализации и водостоков;","Использовать проектную и нормативную техническую\nдокументацию в области монтажа систем отопления;","Требования охраны труда при монтаже санитарнотехнических систем и оборудования;"]
["в составлении актов выполненных работ по испытанию\nсистем отопления, водоснабжения, канализации и водостоков;","Читать монтажные чертежи систем отопления;","Требования, предъявляемые к качеству выполняемых работ\nпо монтажу систем отопления, водоснабжения, канализации и\nводостоков;"]
["в устранении обнаруженных дефектов на смонтированном\nсанитарно-техническом оборудовании.","Проводить испытания санитарно-технических систем и\nоборудования;","Нормативные технические документы и технологическую\nпоследовательность выполнения монтажных работ;"]
[null,"Использовать графические компьютерные программы и\nкомплексы при монтаже систем отопления;","Правила проведения испытаний инженерно- технических\nсистем гражданских зданий;"]
[null,"Использовать диагностические и измерительные инструменты\nи приборы для проведения испытаний санитарно-технических\nсистем и оборудования;","Правила оформления технической документации;"]
[null,"Применять технологическую документацию при проведении\nиспытаний санитарно-технических систем и оборудования;","Требования, предъявляемые к качеству выполняемых работ\nпри проведении испытаний санитарно-технических систем и\nоборудования;"]
[null,"Выполнять работы по проведению испытаний санитарнотехнических систем и оборудования с соблюдением\nтребований охраны труда, пожарной и экологической\nбезопасности;","Требования охраны труда при проведении испытаний\nинженерно- технических систем гражданских зданий;"]
[null,"Обрабатывать результаты испытаний систем отопления,\nводоснабжения, канализации и водостоков;","Правила устранения неисправностей санитарно-технических\nсистем отопления, водоснабжения, канализации и водостоков;"]
[null,"Выявлять отклонения анализируемых показателей при\nпроведении испытаний систем отопления, водоснабжения,\nканализации и водостоков;","Методики проведения анализа дефектов смонтированных\nсанитарно-технических систем и способы их устранения;"]
[null,"Оформлять техническую документацию по результатам\nиспытаний систем центрального отопления, водоснабжения,\nканализации и водостоков;","Виды несоответствий смонтированных санитарнотехнических систем и способы их устранения;\n"]
[null,"Устранять неисправности на смонтированном санитарнотехническом оборудовании, выявленных при испытаниях.","Требования охраны труда."]
[]
["ФГОС 08.02.07 МОНТАЖ И ЭКСПЛУАТАЦИЯ ВНУТРЕННИХ САНТЕХНИЧЕСКИХ УСТРОЙСТВ, КОНДИЦИОНИРОВАНИЯ ВОЗДУХА И ВЕНТИЛЯЦИИ"]
["3.4.1. Организация и контроль работ по монтажу систем водоснабжения и водоотведения, отопления, вентиляции и кондиционирования воздуха:"]
["ПК 1.1. Организовывать и выполнять подготовку систем и объектов к монтажу;"]
["ПК 1.2. Организовывать и выполнять монтаж систем водоснабжения и водоотведения, отопления, вентиляции и кондиционирования воздуха;"]
["ПК 1.3. Организовывать и выполнять производственный контроль качества монтажных работ;"]
["ПК 1.4. Выполнять пусконаладочные работы систем водоснабжения и водоотведения, отопления, вентиляции и кондиционирование воздуха;"]
["Иметь практический опыт в","Уметь","Знать"]
["организации и выполнении монтажа систем водоснабжения и водоотведения, отопления, вентиляции и кондиционирования воздуха;","использовать сопроводительную документацию для проверки комплектности и качества изготовления оборудования санитарно-технических систем, вентиляции и кондиционирования воздуха;","классификацию систем водоснабжения и водоотведения, отопления, вентиляции и кондиционирования воздуха;"]
["выполнении пусконаладочных работ систем водоснабжения и водоотведения, отопления, вентиляции и кондиционирования воздуха.","читать и разрабатывать монтажные чертежи систем водоснабжения и водоотведения, отопления, вентиляции и кондиционирования воздуха;","назначение и правила применения ручных инструментов и приспособлений, необходимых при монтаже систем водоснабжения и водоотведения, отопления, вентиляции и кондиционирования воздуха;"]
[null,"составлять ведомости выявленных дефектов (для поставщика оборудования) с целью их устранения;","состав комплекта технической документации и комплектность оборудования и материалов;"]
[null,"оформлять техническую документацию по результатам испытаний;","проектную и нормативную документацию в области монтажа и испытаний систем водоснабжения и водоотведения, отопления, вентиляции и кондиционирования воздуха;"]
[null,"проводить регулирование смонтированных сантехнических систем, вентиляции и кондиционирования воздуха для достижения проектных и паспортных характеристик;","технологию изготовления узлов и деталей трубопроводов и воздуховодов из различных материалов;"]
[null,"руководить работниками в рамках подразделения при выполнении работ по монтажу систем водоснабжения и водоотведения, отопления, вентиляции и кондиционирования воздуха;","технологию сборки монтажных узлов и требования к качеству их изготовления;"]
[null,"производить измерение производительности и давления вентилятора в характерных точках системы;","основы монтажного проектирования;"]
[null,"пользоваться контрольно-измерительными приборами.","правила по охране труда при подготовке оборудования, узлов и деталей к монтажу в соответствии с проектом производства работ;"]
[null,null,"правила по охране труда при монтаже систем вентиляции и кондиционирования воздуха;"]
[null,null,"технологию монтажных работ систем вентиляции;"]
[null,null,"проектную и нормативную документацию по монтажу систем кондиционирования;"]
[null,null,"способы соединения медных труб;"]
[null,null,"методы проведения измерений гидравлических и аэродинамических характеристик монтируемой системы;"]
[null,null,"принципы работы измерительных приборов и правила пуска и регулирования отдельных элементов и системы в целом;"]
[null,null,"принципы работы монтируемых систем и их элементов;"]
[null,null,"методику проведения регулирования смонтированных систем и отдельных элементов;"]
[null,null,"теплоизоляционный материал и способы работы с ним;"]
[null,null,"правила пайки твердым припоем;"]
[null,null,"особенности менеджмента в соответствующей области профессиональной деятельности."]
[]
["ЕТКС работ и профессий рабочих. Выпуск 3. § 201. Монтажник санитарно-технических систем и оборудования 3-го разряда"]
["Характеристика работ.","Выполнение простых работ при монтаже и ремонте систем центрального отопления, водоснабжения, канализации, газоснабжения и водостоков."]
[null,"Свертывание и сборка простых узлов."]
[null,"Сборка фланцевых соединений."]
[null,"Разборка отдельных узлов трубопроводов (при монтаже)."]
[null,"Установка и заделка креплений под приборы и трубопроводы."]
[null,"Сверление или пробивка отверстий в конструкциях."]
[null,"Заделка раструбов чугунных трубопроводов."]
[null,"Нарезка резьбы на трубах вручную."]
[null,"Комплектование труб и фасонных частей стояков."]
[null,"Установка ручного пресса для опрессовки систем."]
[null,"Отсоединение чугунных котлов от трубопроводов."]
[null,"Обрубка кромок швов жаротрубного котла для последующей подварки."]
[null,"Очистка секций чугунного котла снаружи и изнутри с промывкой."]
[null,"Срубка заклепок жаротрубного котла с выбиванием их."]
[null,"Смена манжет у унитаза."]
[null,"Зачистка сварных швов шлифмашинкой."]
[null,"Прокачка канализационных стояков и отводов."]
[null,"Смена прокладок кранов, вентилей."]
["Должен знать:","виды основных деталей санитарно-технических систем, соединений труб и креплений трубопроводов; "]
[null,"назначение, устройство и особенности монтажа внутренних систем центрального отопления, водоснабжения, канализации, газоснабжения и водостоков;"]
[null,"способы сверления и пробивки отверстий;"]
[null,"правила транспортировки баллонов с кислородом и ацетиленом;"]
[null,"правила техники безопасности при транспортировке баллонов;"]
[null,"правила пользования механизированным инструментом."]
[]
["ЕТКС работ и профессий рабочих. Выпуск 2. Часть 2. § 161. Слесарь-сантехник 3-го разряда"]
["Характеристика работ.","Разборка, ремонт и сборка различных деталей и узлов санитарно-технических систем центрального отопления, водоснабжения, канализации и водостоков."]
[null,"Сверление или пробивка отверстий в конструкциях."]
[null,"Нарезка резьб на трубах вручную."]
[null,"Установка и заделка креплений под трубопроводы и приборы."]
[null,"Комплектование труб и фасонных частей стояков."]
["Должен знать:","принцип действия, назначение и особенности ремонта санитарно-технических трубопроводных систем центрального отопления, водоснабжения, канализации и водостоков;"]
[null,"виды основных деталей санитарно-технических систем, соединений труб и креплений трубопроводов;"]
[null,"способы сверления и пробивки отверстий;"]
[null,"правила обращения и транспортирования баллонов с кислородом и ацетиленом;"]
[null,"назначение и правила пользования механизированным инструментом."]

{"sheet":"ПС16.089 B 02.3 ","index":11,"n_rows":136,"n_cols":3,"rows_kept":136,"merged":[[0,0,0,2],[26,0,26,2],[27,0,27,2],[28,0,28,2],[29,0,29,2],[47,0,47,2],[48,0,48,2],[49,0,49,2],[50,0,50,2],[51,0,51,2],[52,0,52,2],[72,0,72,2],[73,0,73,2],[74,0,74,2],[75,0,75,2],[76,0,76,2],[77,0,77,2],[99,0,99,2],[100,0,117,0],[100,1,100,2],[101,1,101,2],[102,1,102,2],[103,1,103,2],[104,1,104,2],[105,1,105,2],[106,1,106,2],[107,1,107,2],[108,1,108,2],[109,1,109,2],[110,1,110,2],[111,1,111,2],[112,1,112,2],[113,1,113,2],[114,1,114,2],[115,1,115,2],[116,1,116,2],[117,1,117,2],[118,0,123,0],[118,1,118,2],[119,1,119,2],[120,1,120,2],[121,1,121,2],[122,1,122,2],[123,1,123,2],[125,0,125,2],[126,0,130,0],[126,1,126,2],[127,1,127,2],[128,1,128,2],[129,1,129,2],[130,1,130,2],[131,0,135,0],[131,1,131,2],[132,1,132,2],[133,1,133,2],[134,1,134,2],[135,1,135,2]]}
["Профстандарт 16.089 B/02.3"]
["Трудовые действия","Умения","Знания"]
["Разметка мест установки приборов, насосов, прохода трубопроводов, средств креплений","Использовать проектную и нормативную техническую документацию в области монтажа внутренних систем горячего и холодного водоснабжения, канализации и водостоков","Назначение каждого вида оборудования, основных деталей и узлов внутренних систем горячего и холодного водоснабжения, канализации и водостоков"]
["Установка средств крепления и крепление их к строительным конструкциям","Читать монтажные чертежи внутренних систем горячего и холодного водоснабжения, канализации и водостоков, в том числе при помощи графических программ с использованием электронных устройств","Системы разводок от водопроводного, канализационного, водосточного стояков"]
["Монтаж трубопроводов и запорно-регулирующей арматуры диаметром до 400 мм","Разбирать, ремонтировать и собирать средней сложности детали и узлы внутренних систем горячего и холодного водоснабжения, канализации и водостоков","Устройство и способы монтажа трубопроводных систем из стальных, медных и полимерных труб"]
["Гибка элементов трубопроводов по заданным размерам","Соединять трубопроводы внутренних систем горячего и холодного водоснабжения и водостоков","Технология работ по монтажу систем горячего и холодного водоснабжения, канализации и водостоков"]
["Изготовление и установка полотенцесушителей и присоединение их к системе горячего водоснабжения","Крепить детали и приборы внутренних систем горячего и холодного водоснабжения, канализации и водостоков при помощи монтажных пистолетов","Устройство и способы монтажа оборудования систем холодного и горячего водоснабжения"]
["Монтаж водомерного узла и присоединение его к магистральному трубопроводу","Менять участки трубопроводов из чугунных и полимерных труб","Правила установки санитарных приборов"]
["Установка водоразборной арматуры с подсоединением к трубопроводам и уплотнением резьбовых соединений","Выявлять дефектные места при испытании трубопроводов","Способы разметки мест установки санитарных приборов и креплений"]
["Монтаж емкостных и секционных водоподогревателей (бойлеров), центробежных насосов и насосных агрегатов","Использовать ручной, механизированный и измерительный инструмент для монтажа внутренних систем горячего и холодного водоснабжения и водостоков","Виды шаблонов для разметки отверстий при установке приборов и правила пользования ими"]
["Подсоединение к трубопроводам санитарных приборов с арматурой (раковины, умывальники, мойки, трапы, ванны, унитазы, смывные бачки)","Выполнять работы по монтажу внутренних систем горячего и холодного водоснабжения, канализации и водостоков с соблюдением требований охраны труда, пожарной и экологической безопасности","Способы ремонта трубопроводных санитарно-технических систем из стальных, медных и полимерных труб"]
["Установка арматуры к смывному бачку",null,"Устройство монтажных поршневых пистолетов и правила работы с ними"]
["Установка полуавтоматического смывного крана",null,"Назначение и правила применения ручных и механизированных инструментов и приспособлений, необходимых при монтаже внутренних систем горячего и холодного водоснабжения и водостоков"]
["Сборка пожарных рукавов",null,"Правила применения средств индивидуальной защиты при монтаже систем горячего и холодного водоснабжения, канализации и водостоков"]
["Крепление деталей и приборов с помощью монтажных пистолетов",null,"Требования, предъявляемые к качеству выполняемых работ по монтажу систем горячего и холодного водоснабжения, канализации и водостоков"]
["Установка приборов учета расхода воды",null,"Правила рациональной организации труда на рабочем месте"]
["Прокладка водопроводного, канализационного, водосточного стояков",null,"Санитарные нормы и правила проведения работ по монтажу внутренних систем горячего и холодного водоснабжения, канализации и водостоков"]
["Монтаж глубинных, погружных, фекальных, дренажных насосов и насосных станций и присоединение их к существующим санитарно-техническим системам и оборудованию",null,"Правила технической эксплуатации тепловых энергоустановок"]
["Проверка рабочих точек насосных агрегатов на соответствие проектным данным и требованиям",null,"Требования охраны труда при эксплуатации теплопотребляющих установок и тепловых сетей потребителей"]
["Проверка и сдача в эксплуатацию санитарно-технических систем и оборудования",null,"Назначение и правила использования контрольно-измерительного инструмента, применяемого при монтаже внутренних систем горячего и холодного водоснабжения, канализации и водостоков"]
["Установка систем водоподготовки и водоочистки",null,"Основные принципы гидравлики; основные химические свойства воды"]
["Промывка и хлорирование трубопроводов водоснабжения",null,"Виды контрольно-измерительных приборов и средств, применяемых при монтаже внутренних систем горячего и холодного водоснабжения, канализации и водостоков"]
[null,null,"Виды первой помощи и принципы ее оказания"]
[null,null,"Виды и предназначение общестроительных работ"]
[null,null,"Нормативные технические документы по монтажу внутренних систем горячего и холодного водоснабжения, канализации и водостоков"]
[]
["ФГОС  08.01.29 Мастер по ремонту и обслуживанию инженерных систем жилищно-коммунального хозяйства"]
["3.4.1. Выполнение работ по ремонту, монтажу и эксплуатации систем водоснабжения, водоотведения и отопления систем жилищно-коммунального хозяйства:"]
["ПК 1.1. Выполнять ремонт и монтаж систем водоснабжения, водоотведения и отопления. "]
["ПК 1.2. Выполнять эксплуатацию системы водоснабжения, водоотведения и отопления."]
["Иметь практический опыт в","Уметь","Знать"]
["подготовки объекта к ремонту и монтажу систем водоснабжения, водоотведения и отопления в соответствии с проектом производства работ, стандартами рабочего места и охраны труда;\n\n\n\n\n","оценивать состояние рабочего места на соответствие требованиям охраны труда;\n\n\n\n\n\n\n\n\n\n","требования по охране труда при проведении работ по ремонту и монтажу систем водоснабжения, водоотведения и отопления объектов жилищно-коммунального хозяйства; \n\n\n\n\n\n\n\n\n"]
["выполнения подготовительных работ при монтаже и ремонте систем водоснабжения, водоотведения и отопления;","определять исправность средств индивидуальной защиты;\n","виды и основные правила построения чертежей, эскизов и схем систем водоснабжения, водоотведения и отопления объектов жилищно коммунального хозяйства; "]
["подготовки основных и вспомогательных материалов для ремонта и монтажа систем водоснабжения, водоотведения и отопления; ","читать и выполнять чертежи, эскизы и схемы систем водоснабжения, водоотведения и отопления объектов жилищно-коммунального хозяйства; ","проектной технической документации для выполнения монтажных работ системы водоснабжения, водоотведения, отопления;"]
["проведения работ по ремонту и монтажу оборудования систем \nводоснабжения, водоотведения и отопления зданий и сооружений жилищно-коммунального хозяйства;","подбирать материалы, инструменты и оборудование для монтажа и ремонта;","виды, назначения, устройства и принципов работы систем \nводоснабжения, водоотведения и отопления;"]
["\nпроведения работ по эксплуатации оборудования систем \nводоснабжения, водоотведения и отопления зданий и сооружений жилищно-коммунального хозяйства;","проводить техническое обслуживание оборудования систем \nводоснабжения, водоотведения и отопления объектов жилищно коммунального хозяйства; ","сущность, технологии и содержание монтажа и ремонта оборудования систем водоснабжения, водоотведения и отопления; "]
["совершении действий в критических ситуациях при эксплуатации оборудования систем водоснабжения, водоотведения и отопления жилищно-коммунального хозяйства","осуществлять монтаж и ремонт систем водоснабжения, водоотведения и отопления санитарно-технического оборудования с использованием ручного и механизированного инструмента, приспособлений и материалов; ","приемы и методы минимизации издержек на объектах жилищно коммунального хозяйства; "]
[null,"проводить испытания отремонтированных систем и оборудования жилищно-коммунального хозяйства;","основы «бережливого производства», повышающих качество и \nпроизводительность труда на объектах жилищно-коммунального хозяйства; "]
[null,"проводить плановый осмотр оборудования систем водоснабжения, водоотведения и отопления жилищно-коммунального хозяйства; ","компьютерные системы управления обслуживанием и ремонтом; "]
[null,"заполнять техническую документацию по результатам осмотра; \nвыполнять профилактические работы, способствующие эффективной работе санитарно-технических систем; ","методы и приемы расчета необходимых материалов и оборудования при ремонте и монтаже отдельных узлов систем водоснабжения, водоотведения и отопления; "]
[null,"выполнять гидравлическое испытание системы отопления, \nводоснабжения, в том числе поливочной системы и системы \nпротивопожарного водопровода; ","виды ремонта оборудования: текущий, капитальный (объем, \nпериодичность, продолжительность, трудоемкость, количество);"]
[null,"подготавливать внутридомовые системы водоснабжения, отопления в том числе поливочной системы и системы противопожарного водопровода к сезонной эксплуатации; выполнять консервацию внутридомовых систем; ","сущность и содержание технического обслуживания оборудования систем водоснабжения, водоотведения и отопления; "]
[null,"определять причины и устранять неисправности оборудования систем водоснабжения, водоотведения и отопления жилищно-коммунального хозяйства;","виды технического обслуживания: текущее (внутрисменное) \nобслуживание, профилактические осмотры, периодические осмотры, надзор; "]
[null,"проводить испытания отремонтированных систем и оборудования жилищно-коммунального хозяйства; ","правила заполнения технической документации; \nосновные понятия систем автоматического управления и \nрегулирования; "]
[null,"использовать необходимые инструменты, приспособления и материалы при выполнении ремонтных работ","устройство и правила эксплуатации применяемых инструментов, приспособлений; "]
[null,null,"порядок сдачи после ремонта и испытаний оборудования систем водоснабжения, водоотведения и отопления объектов жилищно коммунального хозяйства; "]
[]
["08.02.13 Монтаж и эксплуатация внутренних сантехнических устройств, кондиционирования воздуха и вентиляции"]
["3.4.1. Поддержание рабочего состояния оборудования систем водоснабжения, водоотведения, отопления объектов жилищно-коммунального хозяйства:\n"]
["ПК 1.1. Выполнять подготовительные работы при монтажесистем отопления, водоснабжения, канализации и водостоков.\n"]
["ПК 1.2. Выполнять монтаж систем отопления, водоснабжения, канализации и водостоков."]
["ПК 1.3. Проводить и обрабатывать результаты испытаний систем отопления, водоснабжения, канализации и водостоков."]
["ПК 1.4.Устранять неисправности отопления, водоснабжения, канализации и водостоков при испытаниях."]
["Иметь практический опыт в","Уметь","Знать"]
["в приемке, транспортировке и хранении санитарно-технического оборудования;\n\n\n\n\n\n","Использовать сопроводительную документацию для проверки\nкомплектности и качества изготовления санитарно-технического оборудования;\n\n\n\n\n\n\n","Виды, назначения и принципы действия санитарно-технических систем и оборудования;\n\n\n\n\n\n\n\n"]
["в демонтаже санитарно-технических систем;","Читать чертежи при выполнении подготовительных работ по\nмонтажу санитарно-технических систем и оборудования;","Правила строповки, перемещения и складирования грузов\nсогласно маркировке;"]
["в выборе инструмента и приспособлений, необходимых для\nвыполнения монтажа санитарно-технических систем;","Применять правила такелажных работ;","Назначения и правила применения инструментов и\nприспособлений, необходимых при монтаже санитарно-технических систем и оборудования;"]
["в укрупнительной сборке отдельных узлов санитарно-технических систем;","Выполнять соединения санитарно-технических систем;","Требования охраны труда, пожарной и экологической\nбезопасности при выполнении подготовительных работ при\nмонтаже санитарно-технических систем и оборудования;"]
["в выполнении слесарных операций при монтаже систем\nотопления, водоснабжения, канализации и водостоков;","Производить демонтаж санитарно-технических систем и\nоборудования;","Монтажные чертежи внутренних санитарно-технических\nсистем и оборудования;"]
["в монтаже санитарно-технических систем и оборудования;\n","Выполнять работы по монтажу санитарно-технических систем\nи оборудования с соблюдением требований охраны труда,\nпожарной и экологической безопасности;","Назначение и правила использования контрольноизмерительного инструмента при монтаже санитарнотехнических систем и оборудования;"]
["в проведении испытаний и сдаче в эксплуатацию систем\nотопления, водоснабжения, канализации и водостоков;","Использовать проектную и нормативную техническую\nдокументацию в области монтажа систем отопления;","Требования охраны труда при монтаже санитарнотехнических систем и оборудования;"]
["в составлении актов выполненных работ по испытанию\nсистем отопления, водоснабжения, канализации и водостоков;","Читать монтажные чертежи систем отопления;","Требования, предъявляемые к качеству выполняемых работ\nпо монтажу систем отопления, водоснабжения, канализации и\nводостоков;"]
["в устранении обнаруженных дефектов на смонтированном\nсанитарно-техническом оборудовании.","Проводить испытания санитарно-технических систем и\nоборудования;","Нормативные технические документы и технологическую\nпоследовательность выполнения монтажных работ;"]
[null,"Использовать графические компьютерные программы и\nкомплексы при монтаже систем отопления;","Правила проведения испытаний инженерно- технических\nсистем гражданских зданий;"]
[null,"Использовать диагностические и измерительные инструменты\nи приборы для проведения испытаний санитарно-технических\nсистем и оборудования;","Правила оформления технической документации;"]
[null,"Применять технологическую документацию при проведении\nиспытаний санитарно-технических систем и оборудования;","Требования, предъявляемые к качеству выполняемых работ\nпри проведении испытаний санитарно-технических систем и\nоборудования;"]
[null,"Выполнять работы по проведению испытаний санитарнотехнических систем и оборудования с соблюдением\nтребований охраны труда, пожарной и экологической\nбезопасности;","Требования охраны труда при проведении испытаний\nинженерно- технических систем гражданских зданий;"]
[null,"Обрабатывать результаты испытаний систем отопления,\nводоснабжения, канализации и водостоков;","Правила устранения неисправностей санитарно-технических\nсистем отопления, водоснабжения, канализации и водостоков;"]
[null,"Выявлять отклонения анализируемых показателей при\nпроведении испытаний систем отопления, водоснабжения,\nканализации и водостоков;","Методики проведения анализа дефектов смонтированных\nсанитарно-технических систем и способы их устранения;"]
[null,"Оформлять техническую документацию по результатам\nиспытаний систем центрального отопления, водоснабжения,\nканализации и водостоков;","Виды несоответствий смонтированных санитарнотехнических систем и способы их устранения;\n"]
[null,"Устранять неисправности на смонтированном санитарнотехническом оборудовании, выявленных при испытаниях.","Требования охраны труда."]
[]
["ФГОС 08.02.07 МОНТАЖ И ЭКСПЛУАТАЦИЯ ВНУТРЕННИХ САНТЕХНИЧЕСКИХ УСТРОЙСТВ, КОНДИЦИОНИРОВАНИЯ ВОЗДУХА И ВЕНТИЛЯЦИИ"]
["3.4.1. Организация и контроль работ по монтажу систем водоснабжения и водоотведения, отопления, вентиляции и кондиционирования воздуха:"]
["ПК 1.1. Организовывать и выполнять подготовку систем и объектов к монтажу;"]
["ПК 1.2. Организовывать и выполнять монтаж систем водоснабжения и водоотведения, отопления, вентиляции и кондиционирования воздуха;"]
["ПК 1.3. Организовывать и выполнять производственный контроль качества монтажных работ;"]
["ПК 1.4. Выполнять пусконаладочные работы систем водоснабжения и водоотведения, отопления, вентиляции и кондиционирование воздуха;"]
["Иметь практический опыт в","Уметь","Знать"]
["организации и выполнении монтажа систем водоснабжения и водоотведения, отопления, вентиляции и кондиционирования воздуха;","использовать сопроводительную документацию для проверки комплектности и качества изготовления оборудования санитарно-технических систем, вентиляции и кондиционирования воздуха;","классификацию систем водоснабжения и водоотведения, отопления, вентиляции и кондиционирования воздуха;"]
["выполнении пусконаладочных работ систем водоснабжения и водоотведения, отопления, вентиляции и кондиционирования воздуха.","читать и разрабатывать монтажные чертежи систем водоснабжения и водоотведения, отопления, вентиляции и кондиционирования воздуха;","назначение и правила применения ручных инструментов и приспособлений, необходимых при монтаже систем водоснабжения и водоотведения, отопления, вентиляции и кондиционирования воздуха;"]
[null,"составлять ведомости выявленных дефектов (для поставщика оборудования) с целью их устранения;","состав комплекта технической документации и комплектность оборудования и материалов;"]
[null,"оформлять техническую документацию по результатам испытаний;","проектную и нормативную документацию в области монтажа и испытаний систем водоснабжения и водоотведения, отопления, вентиляции и кондиционирования воздуха;"]
[null,"проводить регулирование смонтированных сантехнических систем, вентиляции и кондиционирования воздуха для достижения проектных и паспортных характеристик;","технологию изготовления узлов и деталей трубопроводов и воздуховодов из различных материалов;"]
[null,"руководить работниками в рамках подразделения при выполнении работ по монтажу систем водоснабжения и водоотведения, отопления, вентиляции и кондиционирования воздуха;","технологию сборки монтажных узлов и требования к качеству их изготовления;"]
[null,"производить измерение производительности и давления вентилятора в характерных точках системы;","основы монтажного проектирования;"]
[null,"пользоваться контрольно-измерительными приборами.","правила по охране труда при подготовке оборудования, узлов и деталей к монтажу в соответствии с проектом производства работ;"]
[null,null,"правила по охране труда при монтаже систем вентиляции и кондиционирования воздуха;"]
[null,null,"технологию монтажных работ систем вентиляции;"]
[null,null,"проектную и нормативную документацию по монтажу систем кондиционирования;"]
[null,null,"способы соединения медных труб;"]
[null,null,"методы проведения измерений гидравлических и аэродинамических характеристик монтируемой системы;"]
[null,null,"принципы работы измерительных приборов и правила пуска и регулирования отдельных элементов и системы в целом;"]
[null,null,"принципы работы монтируемых систем и их элементов;"]
[null,null,"методику проведения регулирования смонтированных систем и отдельных элементов;"]
[null,null,"теплоизоляционный материал и способы работы с ним;"]
[null,null,"правила пайки твердым припоем;"]
[null,null,"особенности менеджмента в соответствующей области профессиональной деятельности."]
[]
["ЕТКС работ и профессий рабочих. Выпуск 3. § 201. Монтажник санитарно-технических систем и оборудования 3-го разряда"]
["Характеристика работ.","Выполнение простых работ при монтаже и ремонте систем центрального отопления, водоснабжения, канализации, газоснабжения и водостоков."]
[null,"Свертывание и сборка простых узлов."]
[null,"Сборка фланцевых соединений."]
[null,"Разборка отдельных узлов трубопроводов (при монтаже)."]
[null,"Установка и заделка креплений под приборы и трубопроводы."]
[null,"Сверление или пробивка отверстий в конструкциях."]
[null,"Заделка раструбов чугунных трубопроводов."]
[null,"Нарезка резьбы на трубах вручную."]
[null,"Комплектование труб и фасонных частей стояков."]
[null,"Установка ручного пресса для опрессовки систем."]
[null,"Отсоединение чугунных котлов от трубопроводов."]
[null,"Обрубка кромок швов жаротрубного котла для последующей подварки."]
[null,"Очистка секций чугунного котла снаружи и изнутри с промывкой."]
[null,"Срубка заклепок жаротрубного котла с выбиванием их."]
[null,"Смена манжет у унитаза."]
[null,"Зачистка сварных швов шлифмашинкой."]
[null,"Прокачка канализационных стояков и отводов."]
[null,"Смена прокладок кранов, вентилей."]
["Должен знать:","виды основных деталей санитарно-технических систем, соединений труб и креплений трубопроводов; "]
[null,"назначение, устройство и особенности монтажа внутренних систем центрального отопления, водоснабжения, канализации, газоснабжения и водостоков;"]
[null,"способы сверления и пробивки отверстий;"]
[null,"правила транспортировки баллонов с кислородом и ацетиленом;"]
[null,"правила техники безопасности при транспортировке баллонов;"]
[null,"правила пользования механизированным инструментом."]
[]
["ЕТКС работ и профессий рабочих. Выпуск 2. Часть 2. § 161. Слесарь-сантехник 3-го разряда"]
["Характеристика работ.","Разборка, ремонт и сборка различных деталей и узлов санитарно-технических систем центрального отопления, водоснабжения, канализации и водостоков."]
[null,"Сверление или пробивка отверстий в конструкциях."]
[null,"Нарезка резьб на трубах вручную."]
[null,"Установка и заделка креплений под трубопроводы и приборы."]
[null,"Комплектование труб и фасонных частей стояков."]
["Должен знать:","принцип действия, назначение и особенности ремонта санитарно-технических трубопроводных систем центрального отопления, водоснабжения, канализации и водостоков;"]
[null,"виды основных деталей санитарно-технических систем, соединений труб и креплений трубопроводов;"]
[null,"способы сверления и пробивки отверстий;"]
[null,"правила обращения и транспортирования баллонов с кислородом и ацетиленом;"]
[null,"назначение и правила пользования механизированным инструментом."]